Workbook

Sheet 1040
C3: Payment Amount: | D3: 325
C4: Start Date: | D4: 45532
C5: Day Due | D5: 28th
D6: 1 | G6: 2 | H6: 3 | I6: 4 | J6: 5 | K6: 6
C7: Form | D7: 1040 | G7: 1040
C8: Period | D8: 44561 | G8: 44926
C9: Tax | D9: 6087 | G9: 5978
C10: W/H | D10: 2621 | G10: 3568
C11: Due | D11: 44666 | G11: 45031
C12: Extension | D12: No | G12: No
C13: Due Date for filing | D13: =IF(D12="Yes",EDATE(D11,6),D11) -> 44666
C14: Date filed | D14: 44700 | G14: 45018
C15: CSED | D15: 48445 | G15: 12146
C17: FTF Pen | D17: 519.9 | G17: 426.31
C18: FTP Pen | D18: 727.86 | G18: 615.87
C19: FTD Pen | D19: $
C20: Interest | D20: 432.25 | G20: 206.58
C22: Debits & Credits
C23: Item | D23: Date | E23: Amount
C24: Additional Tax | D24: 45397 | E24: 6548
C25: Reactive | D25: 45397 | E25: 8745
D52: TOTALS
D53: Date | E53: Total | F53: Match
D54: =IF(COUNTA(Table4[Date])<1,"",_xlfn.UNIQUE(Table4[Date])) -> 45397 | E54: =IF(Table3[[#This Row],[Date]]="","",SUMIF(Table4[Date],Table3[[#This Row],[Date]],Table4[Amount])) -> 15293 | F54: =MATCH(Table3[[#This Row],[Date]],Running!K7:K6215,0)+6 -> 737

Sheet Sheet2
A22: =DATE(YEAR('1040'!D8),1,1) -> 2021-01-01
A23: =EDATE(A22,1) -> 2021-02-01
A24: =EDATE(A23,1) -> 2021-03-01
A25: 2021-04-01
A26: 2021-05-01
A27: 2021-06-01
A28: 2021-07-01
A29: 2021-08-01
A30: 2021-09-01
A31: 2021-10-01
A32: 2021-11-01
A33: 2021-12-01
A34: 2022-01-01
A35: 2022-02-01
A36: 2022-03-01
A37: 2022-04-01
A38: 2022-05-01
A39: 2022-06-01
A40: 2022-07-01
A41: 2022-08-01
A42: 2022-09-01
A43: 2022-10-01
A44: 2022-11-01
A45: 2022-12-01
A46: 2023-01-01
A47: 2023-02-01
A48: 2023-03-01
A49: 2023-04-01
A50: 2023-05-01
A51: 2023-06-01
A52: 2023-07-01
A53: 2023-08-01
A54: 2023-09-01
A55: 2023-10-01
A56: 2023-11-01
A57: 2023-12-01
A58: 2024-01-01
A59: 2024-02-01
A60: 2024-03-01
A61: 2024-04-01
A62: 2024-05-01
A63: 2024-06-01
A64: 2024-07-01
A65: 2024-08-01
A66: 2024-09-01
A67: 2024-10-01
A68: 2024-11-01
A69: 2024-12-01
A70: 2025-01-01
A71: 2025-02-01
A72: 2025-03-01
A73: 2025-04-01
A74: 2025-05-01
A75: 2025-06-01
A76: 2025-07-01
A77: 2025-08-01
A78: 2025-09-01
A79: 2025-10-01
A80: 2025-11-01
A81: 2025-12-01
A82: 2026-01-01
A83: 2026-02-01
A84: 2026-03-01
A85: 2026-04-01
A86: 2026-05-01
A87: 2026-06-01
A88: =EDATE(A87,1) -> 2026-07-01
A89: 2026-08-01
A90: 2026-09-01
A91: 2026-10-01
A92: 2026-11-01
A93: 2026-12-01
A94: 2027-01-01
A95: 2027-02-01
A96: 2027-03-01
A97: 2027-04-01
A98: 2027-05-01
A99: 2027-06-01
A100: 2027-07-01
A101: 2027-08-01
A102: 2027-09-01
A103: 2027-10-01
A104: 2027-11-01
A105: 2027-12-01
A106: 2028-01-01
A107: 2028-02-01
A108: 2028-03-01
A109: 2028-04-01
A110: 2028-05-01
A111: 2028-06-01
A112: 2028-07-01
A113: 2028-08-01
A114: 2028-09-01
A115: 2028-10-01
A116: 2028-11-01
A117: 2028-12-01
A118: 2029-01-01
A119: 2029-02-01
A120: 2029-03-01
A121: 2029-04-01
A122: 2029-05-01
A123: 2029-06-01
A124: 2029-07-01
A125: 2029-08-01
A126: 2029-09-01
A127: 2029-10-01
A128: 2029-11-01
A129: 2029-12-01
A130: 2030-01-01
A131: 2030-02-01
A132: 2030-03-01
A133: 2030-04-01
A134: 2030-05-01
A135: 2030-06-01
A136: 2030-07-01
A137: 2030-08-01
A138: 2030-09-01
A139: 2030-10-01
A140: 2030-11-01
A141: 2030-12-01
A142: 2031-01-01
A143: 2031-02-01
A144: 2031-03-01
A145: 2031-04-01
A146: 2031-05-01
A147: 2031-06-01
A148: 2031-07-01
A149: 2031-08-01
A150: 2031-09-01
A151: 2031-10-01
A152: =EDATE(A151,1) -> 2031-11-01
A153: 2031-12-01
A154: 2032-01-01
A155: 2032-02-01
A156: 2032-03-01
A157: 2032-04-01
A158: 2032-05-01
A159: 2032-06-01
A160: 2032-07-01
A161: 2032-08-01
A162: 2032-09-01
A163: 2032-10-01
A164: 2032-11-01
A165: 2032-12-01

Sheet Running
K4: Period One (1)
B5: Interest Rate Table | G5: FTF | K5: ='1040'!D11 -> 44666 | L5: =('1040'!D9-'1040'!D10) -> 3466
B6: Date | C6: Q | D6: Int. Rt. | E6: Daily Int. Rt. | G6: Due | H6: ='1040'!D11 -> 44666 | K6: Date | L6: Interest | M6: FTF Pen | N6: FTP Pen | O6: FTD Pen | P6: Other Pen | Q6: Payment | R6: Balance
B7: =VALUE("01/01/"&YEAR('1040'!D8)) -> 2021-01-01 | C7: ="Q"&ROUNDUP(MONTH(B1)/3,0) -> Q1 | D7: =_xlfn.XLOOKUP(YEAR(B7),Table1[Year],_xlfn.XLOOKUP(Running!C7,Table1[[#Headers],[Q1]:[Q4]],Table1[[Q1]:[Q4]])) -> 0.03 | E7: =D7/365 -> 8.219178082e-05 | G7: Filed | H7: ='1040'!D14 -> 44700 | K7: =K5+1 -> 44667 | L7: =ROUNDUP(_xlfn.XLOOKUP(K7,$B$7:$B$6215,$E$7:$E$6215)*L5,10) -> 0.4747945206 | R7: =SUM(L7:Q7)+L5 -> 3466.474795
B8: =B7+1 -> 2021-01-02 | C8: ="Q"&ROUNDUP(MONTH(B8)/3,0) -> Q1 | D8: =IF(_xlfn.XLOOKUP(YEAR(B8),Table1[Year],_xlfn.XLOOKUP(Running!C8,Table1[[#Headers],[Q1]:[Q4]],Table1[[Q1]:[Q4]]))=0,D7,_xlfn.XLOOKUP(YEAR(B8),Table1[Year],_xlfn.XLOOKUP(Running!C8,Table1[[#Headers],[Q1]:[Q4]],Table1[[Q1]:[Q4]]))) -> 0.03 | E8: =D8/365 -> 8.219178082e-05 | G8: # mos | H8: =IF(DATEDIF(H6,H7,"m")>5,5,DATEDIF(H6,H7,"m")) -> 1 | K8: =K7+1 -> 44668 | L8: =ROUNDUP(_xlfn.XLOOKUP(K8,$B$7:$B$6215,$E$7:$E$6215)*R7,10) -> 0.4748595609 | R8: =SUM(L8:Q8)+R7 -> 3466.949654
B9: =B8+1 -> 2021-01-03 | C9: Q1 | D9: =IF(_xlfn.XLOOKUP(YEAR(B9),Table1[Year],_xlfn.XLOOKUP(Running!C9,Table1[[#Headers],[Q1]:[Q4]],Table1[[Q1]:[Q4]]))=0,D8,_xlfn.XLOOKUP(YEAR(B9),Table1[Year],_xlfn.XLOOKUP(Running!C9,Table1[[#Headers],[Q1]:[Q4]],Table1[[Q1]:[Q4]]))) -> 0.03 | E9: 8.219178082e-05 | H9: =MAX((0.05*L5)*H8,PandI!J11) -> 435 | K9: =K8+1 -> 44669 | L9: 0.4749246102 | R9: 3467.424579
B10: 2021-01-04 | C10: Q1 | D10: =IF(_xlfn.XLOOKUP(YEAR(B10),Table1[Year],_xlfn.XLOOKUP(Running!C10,Table1[[#Headers],[Q1]:[Q4]],Table1[[Q1]:[Q4]]))=0,D9,_xlfn.XLOOKUP(YEAR(B10),Table1[Year],_xlfn.XLOOKUP(Running!C10,Table1[[#Headers],[Q1]:[Q4]],Table1[[Q1]:[Q4]]))) -> 0.03 | E10: 8.219178082e-05 | K10: 44670 | L10: 0.4749896684 | R10: 3467.899568
B11: 2021-01-05 | C11: Q1 | D11: =IF(_xlfn.XLOOKUP(YEAR(B11),Table1[Year],_xlfn.XLOOKUP(Running!C11,Table1[[#Headers],[Q1]:[Q4]],Table1[[Q1]:[Q4]]))=0,D10,_xlfn.XLOOKUP(YEAR(B11),Table1[Year],_xlfn.XLOOKUP(Running!C11,Table1[[#Headers],[Q1]:[Q4]],Table1[[Q1]:[Q4]]))) -> 0.03 | E11: 8.219178082e-05 | K11: 44671 | L11: 0.4750547354 | R11: 3468.374623
B12: 2021-01-06 | C12: Q1 | D12: =IF(_xlfn.XLOOKUP(YEAR(B12),Table1[Year],_xlfn.XLOOKUP(Running!C12,Table1[[#Headers],[Q1]:[Q4]],Table1[[Q1]:[Q4]]))=0,D11,_xlfn.XLOOKUP(YEAR(B12),Table1[Year],_xlfn.XLOOKUP(Running!C12,Table1[[#Headers],[Q1]:[Q4]],Table1[[Q1]:[Q4]]))) -> 0.03 | E12: 8.219178082e-05 | K12: 44672 | L12: 0.4751198114 | R12: 3468.849743
B13: 2021-01-07 | C13: Q1 | D13: =IF(_xlfn.XLOOKUP(YEAR(B13),Table1[Year],_xlfn.XLOOKUP(Running!C13,Table1[[#Headers],[Q1]:[Q4]],Table1[[Q1]:[Q4]]))=0,D12,_xlfn.XLOOKUP(YEAR(B13),Table1[Year],_xlfn.XLOOKUP(Running!C13,Table1[[#Headers],[Q1]:[Q4]],Table1[[Q1]:[Q4]]))) -> 0.03 | E13: 8.219178082e-05 | K13: 44673 | L13: 0.4751848963 | R13: 3469.324928
B14: 2021-01-08 | C14: Q1 | D14: =IF(_xlfn.XLOOKUP(YEAR(B14),Table1[Year],_xlfn.XLOOKUP(Running!C14,Table1[[#Headers],[Q1]:[Q4]],Table1[[Q1]:[Q4]]))=0,D13,_xlfn.XLOOKUP(YEAR(B14),Table1[Year],_xlfn.XLOOKUP(Running!C14,Table1[[#Headers],[Q1]:[Q4]],Table1[[Q1]:[Q4]]))) -> 0.03 | E14: 8.219178082e-05 | K14: 44674 | L14: 0.4752499902 | R14: 3469.800178
B15: 2021-01-09 | C15: Q1 | D15: =IF(_xlfn.XLOOKUP(YEAR(B15),Table1[Year],_xlfn.XLOOKUP(Running!C15,Table1[[#Headers],[Q1]:[Q4]],Table1[[Q1]:[Q4]]))=0,D14,_xlfn.XLOOKUP(YEAR(B15),Table1[Year],_xlfn.XLOOKUP(Running!C15,Table1[[#Headers],[Q1]:[Q4]],Table1[[Q1]:[Q4]]))) -> 0.03 | E15: 8.219178082e-05 | K15: 44675 | L15: 0.4753150929 | R15: 3470.275493
B16: 2021-01-10 | C16: Q1 | D16: =IF(_xlfn.XLOOKUP(YEAR(B16),Table1[Year],_xlfn.XLOOKUP(Running!C16,Table1[[#Headers],[Q1]:[Q4]],Table1[[Q1]:[Q4]]))=0,D15,_xlfn.XLOOKUP(YEAR(B16),Table1[Year],_xlfn.XLOOKUP(Running!C16,Table1[[#Headers],[Q1]:[Q4]],Table1[[Q1]:[Q4]]))) -> 0.03 | E16: 8.219178082e-05 | K16: 44676 | L16: 0.4753802046 | R16: 3470.750873
B17: 2021-01-11 | C17: Q1 | D17: =IF(_xlfn.XLOOKUP(YEAR(B17),Table1[Year],_xlfn.XLOOKUP(Running!C17,Table1[[#Headers],[Q1]:[Q4]],Table1[[Q1]:[Q4]]))=0,D16,_xlfn.XLOOKUP(YEAR(B17),Table1[Year],_xlfn.XLOOKUP(Running!C17,Table1[[#Headers],[Q1]:[Q4]],Table1[[Q1]:[Q4]]))) -> 0.03 | E17: 8.219178082e-05 | K17: 44677 | L17: 0.4754453251 | R17: 3471.226318
B18: 2021-01-12 | C18: Q1 | D18: =IF(_xlfn.XLOOKUP(YEAR(B18),Table1[Year],_xlfn.XLOOKUP(Running!C18,Table1[[#Headers],[Q1]:[Q4]],Table1[[Q1]:[Q4]]))=0,D17,_xlfn.XLOOKUP(YEAR(B18),Table1[Year],_xlfn.XLOOKUP(Running!C18,Table1[[#Headers],[Q1]:[Q4]],Table1[[Q1]:[Q4]]))) -> 0.03 | E18: 8.219178082e-05 | K18: 44678 | L18: 0.4755104546 | R18: 3471.701829
B19: 2021-01-13 | C19: Q1 | D19: =IF(_xlfn.XLOOKUP(YEAR(B19),Table1[Year],_xlfn.XLOOKUP(Running!C19,Table1[[#Headers],[Q1]:[Q4]],Table1[[Q1]:[Q4]]))=0,D18,_xlfn.XLOOKUP(YEAR(B19),Table1[Year],_xlfn.XLOOKUP(Running!C19,Table1[[#Headers],[Q1]:[Q4]],Table1[[Q1]:[Q4]]))) -> 0.03 | E19: 8.219178082e-05 | K19: 44679 | L19: 0.475575593 | R19: 3472.177404
B20: 2021-01-14 | C20: Q1 | D20: =IF(_xlfn.XLOOKUP(YEAR(B20),Table1[Year],_xlfn.XLOOKUP(Running!C20,Table1[[#Headers],[Q1]:[Q4]],Table1[[Q1]:[Q4]]))=0,D19,_xlfn.XLOOKUP(YEAR(B20),Table1[Year],_xlfn.XLOOKUP(Running!C20,Table1[[#Headers],[Q1]:[Q4]],Table1[[Q1]:[Q4]]))) -> 0.03 | E20: 8.219178082e-05 | K20: 44680 | L20: 0.4756407404 | R20: 3472.653045
B21: 2021-01-15 | C21: Q1 | D21: =IF(_xlfn.XLOOKUP(YEAR(B21),Table1[Year],_xlfn.XLOOKUP(Running!C21,Table1[[#Headers],[Q1]:[Q4]],Table1[[Q1]:[Q4]]))=0,D20,_xlfn.XLOOKUP(YEAR(B21),Table1[Year],_xlfn.XLOOKUP(Running!C21,Table1[[#Headers],[Q1]:[Q4]],Table1[[Q1]:[Q4]]))) -> 0.03 | E21: 8.219178082e-05 | K21: 44681 | L21: 0.4757058967 | R21: 3473.128751
B22: 2021-01-16 | C22: Q1 | D22: =IF(_xlfn.XLOOKUP(YEAR(B22),Table1[Year],_xlfn.XLOOKUP(Running!C22,Table1[[#Headers],[Q1]:[Q4]],Table1[[Q1]:[Q4]]))=0,D21,_xlfn.XLOOKUP(YEAR(B22),Table1[Year],_xlfn.XLOOKUP(Running!C22,Table1[[#Headers],[Q1]:[Q4]],Table1[[Q1]:[Q4]]))) -> 0.03 | E22: 8.219178082e-05 | K22: 44682 | L22: 0.4757710618 | R22: 3473.604522
B23: 2021-01-17 | C23: Q1 | D23: =IF(_xlfn.XLOOKUP(YEAR(B23),Table1[Year],_xlfn.XLOOKUP(Running!C23,Table1[[#Headers],[Q1]:[Q4]],Table1[[Q1]:[Q4]]))=0,D22,_xlfn.XLOOKUP(YEAR(B23),Table1[Year],_xlfn.XLOOKUP(Running!C23,Table1[[#Headers],[Q1]:[Q4]],Table1[[Q1]:[Q4]]))) -> 0.03 | E23: 8.219178082e-05 | K23: 44683 | L23: 0.475836236 | R23: 3474.080358
B24: 2021-01-18 | C24: Q1 | D24: =IF(_xlfn.XLOOKUP(YEAR(B24),Table1[Year],_xlfn.XLOOKUP(Running!C24,Table1[[#Headers],[Q1]:[Q4]],Table1[[Q1]:[Q4]]))=0,D23,_xlfn.XLOOKUP(YEAR(B24),Table1[Year],_xlfn.XLOOKUP(Running!C24,Table1[[#Headers],[Q1]:[Q4]],Table1[[Q1]:[Q4]]))) -> 0.03 | E24: 8.219178082e-05 | K24: 44684 | L24: 0.475901419 | R24: 3474.55626
B25: 2021-01-19 | C25: Q1 | D25: =IF(_xlfn.XLOOKUP(YEAR(B25),Table1[Year],_xlfn.XLOOKUP(Running!C25,Table1[[#Headers],[Q1]:[Q4]],Table1[[Q1]:[Q4]]))=0,D24,_xlfn.XLOOKUP(YEAR(B25),Table1[Year],_xlfn.XLOOKUP(Running!C25,Table1[[#Headers],[Q1]:[Q4]],Table1[[Q1]:[Q4]]))) -> 0.03 | E25: 8.219178082e-05 | K25: 44685 | L25: 0.475966611 | R25: 3475.032226
B26: 2021-01-20 | C26: Q1 | D26: =IF(_xlfn.XLOOKUP(YEAR(B26),Table1[Year],_xlfn.XLOOKUP(Running!C26,Table1[[#Headers],[Q1]:[Q4]],Table1[[Q1]:[Q4]]))=0,D25,_xlfn.XLOOKUP(YEAR(B26),Table1[Year],_xlfn.XLOOKUP(Running!C26,Table1[[#Headers],[Q1]:[Q4]],Table1[[Q1]:[Q4]]))) -> 0.03 | E26: 8.219178082e-05 | K26: 44686 | L26: 0.4760318119 | R26: 3475.508258
B27: 2021-01-21 | C27: Q1 | D27: =IF(_xlfn.XLOOKUP(YEAR(B27),Table1[Year],_xlfn.XLOOKUP(Running!C27,Table1[[#Headers],[Q1]:[Q4]],Table1[[Q1]:[Q4]]))=0,D26,_xlfn.XLOOKUP(YEAR(B27),Table1[Year],_xlfn.XLOOKUP(Running!C27,Table1[[#Headers],[Q1]:[Q4]],Table1[[Q1]:[Q4]]))) -> 0.03 | E27: 8.219178082e-05 | K27: 44687 | L27: 0.4760970217 | R27: 3475.984355
B28: 2021-01-22 | C28: Q1 | D28: =IF(_xlfn.XLOOKUP(YEAR(B28),Table1[Year],_xlfn.XLOOKUP(Running!C28,Table1[[#Headers],[Q1]:[Q4]],Table1[[Q1]:[Q4]]))=0,D27,_xlfn.XLOOKUP(YEAR(B28),Table1[Year],_xlfn.XLOOKUP(Running!C28,Table1[[#Headers],[Q1]:[Q4]],Table1[[Q1]:[Q4]]))) -> 0.03 | E28: 8.219178082e-05 | K28: 44688 | L28: 0.4761622405 | R28: 3476.460518
B29: 2021-01-23 | C29: Q1 | D29: =IF(_xlfn.XLOOKUP(YEAR(B29),Table1[Year],_xlfn.XLOOKUP(Running!C29,Table1[[#Headers],[Q1]:[Q4]],Table1[[Q1]:[Q4]]))=0,D28,_xlfn.XLOOKUP(YEAR(B29),Table1[Year],_xlfn.XLOOKUP(Running!C29,Table1[[#Headers],[Q1]:[Q4]],Table1[[Q1]:[Q4]]))) -> 0.03 | E29: 8.219178082e-05 | K29: 44689 | L29: 0.4762274682 | R29: 3476.936745
B30: 2021-01-24 | C30: Q1 | D30: =IF(_xlfn.XLOOKUP(YEAR(B30),Table1[Year],_xlfn.XLOOKUP(Running!C30,Table1[[#Headers],[Q1]:[Q4]],Table1[[Q1]:[Q4]]))=0,D29,_xlfn.XLOOKUP(YEAR(B30),Table1[Year],_xlfn.XLOOKUP(Running!C30,Table1[[#Headers],[Q1]:[Q4]],Table1[[Q1]:[Q4]]))) -> 0.03 | E30: 8.219178082e-05 | K30: 44690 | L30: 0.4762927048 | R30: 3477.413038
B31: 2021-01-25 | C31: Q1 | D31: =IF(_xlfn.XLOOKUP(YEAR(B31),Table1[Year],_xlfn.XLOOKUP(Running!C31,Table1[[#Headers],[Q1]:[Q4]],Table1[[Q1]:[Q4]]))=0,D30,_xlfn.XLOOKUP(YEAR(B31),Table1[Year],_xlfn.XLOOKUP(Running!C31,Table1[[#Headers],[Q1]:[Q4]],Table1[[Q1]:[Q4]]))) -> 0.03 | E31: 8.219178082e-05 | K31: 44691 | L31: 0.4763579504 | R31: 3477.889396
B32: 2021-01-26 | C32: Q1 | D32: =IF(_xlfn.XLOOKUP(YEAR(B32),Table1[Year],_xlfn.XLOOKUP(Running!C32,Table1[[#Headers],[Q1]:[Q4]],Table1[[Q1]:[Q4]]))=0,D31,_xlfn.XLOOKUP(YEAR(B32),Table1[Year],_xlfn.XLOOKUP(Running!C32,Table1[[#Headers],[Q1]:[Q4]],Table1[[Q1]:[Q4]]))) -> 0.03 | E32: 8.219178082e-05 | K32: 44692 | L32: 0.4764232049 | R32: 3478.365819
B33: 2021-01-27 | C33: Q1 | D33: =IF(_xlfn.XLOOKUP(YEAR(B33),Table1[Year],_xlfn.XLOOKUP(Running!C33,Table1[[#Headers],[Q1]:[Q4]],Table1[[Q1]:[Q4]]))=0,D32,_xlfn.XLOOKUP(YEAR(B33),Table1[Year],_xlfn.XLOOKUP(Running!C33,Table1[[#Headers],[Q1]:[Q4]],Table1[[Q1]:[Q4]]))) -> 0.03 | E33: 8.219178082e-05 | K33: 44693 | L33: 0.4764884684 | R33: 3478.842307
B34: 2021-01-28 | C34: Q1 | D34: =IF(_xlfn.XLOOKUP(YEAR(B34),Table1[Year],_xlfn.XLOOKUP(Running!C34,Table1[[#Headers],[Q1]:[Q4]],Table1[[Q1]:[Q4]]))=0,D33,_xlfn.XLOOKUP(YEAR(B34),Table1[Year],_xlfn.XLOOKUP(Running!C34,Table1[[#Headers],[Q1]:[Q4]],Table1[[Q1]:[Q4]]))) -> 0.03 | E34: 8.219178082e-05 | K34: 44694 | L34: 0.4765537408 | R34: 3479.318861
B35: 2021-01-29 | C35: Q1 | D35: =IF(_xlfn.XLOOKUP(YEAR(B35),Table1[Year],_xlfn.XLOOKUP(Running!C35,Table1[[#Headers],[Q1]:[Q4]],Table1[[Q1]:[Q4]]))=0,D34,_xlfn.XLOOKUP(YEAR(B35),Table1[Year],_xlfn.XLOOKUP(Running!C35,Table1[[#Headers],[Q1]:[Q4]],Table1[[Q1]:[Q4]]))) -> 0.03 | E35: 8.219178082e-05 | K35: 44695 | L35: 0.4766190221 | R35: 3479.79548
B36: 2021-01-30 | C36: Q1 | D36: =IF(_xlfn.XLOOKUP(YEAR(B36),Table1[Year],_xlfn.XLOOKUP(Running!C36,Table1[[#Headers],[Q1]:[Q4]],Table1[[Q1]:[Q4]]))=0,D35,_xlfn.XLOOKUP(YEAR(B36),Table1[Year],_xlfn.XLOOKUP(Running!C36,Table1[[#Headers],[Q1]:[Q4]],Table1[[Q1]:[Q4]]))) -> 0.03 | E36: 8.219178082e-05 | K36: 44696 | L36: 0.4766843124 | R36: 3480.272164
B37: 2021-01-31 | C37: Q1 | D37: =IF(_xlfn.XLOOKUP(YEAR(B37),Table1[Year],_xlfn.XLOOKUP(Running!C37,Table1[[#Headers],[Q1]:[Q4]],Table1[[Q1]:[Q4]]))=0,D36,_xlfn.XLOOKUP(YEAR(B37),Table1[Year],_xlfn.XLOOKUP(Running!C37,Table1[[#Headers],[Q1]:[Q4]],Table1[[Q1]:[Q4]]))) -> 0.03 | E37: 8.219178082e-05 | K37: 44697 | L37: 0.4767496116 | R37: 3480.748914
B38: 2021-02-01 | C38: Q1 | D38: =IF(_xlfn.XLOOKUP(YEAR(B38),Table1[Year],_xlfn.XLOOKUP(Running!C38,Table1[[#Headers],[Q1]:[Q4]],Table1[[Q1]:[Q4]]))=0,D37,_xlfn.XLOOKUP(YEAR(B38),Table1[Year],_xlfn.XLOOKUP(Running!C38,Table1[[#Headers],[Q1]:[Q4]],Table1[[Q1]:[Q4]]))) -> 0.03 | E38: 8.219178082e-05 | K38: 44698 | L38: 0.4768149198 | R38: 3481.225729
B39: 2021-02-02 | C39: Q1 | D39: =IF(_xlfn.XLOOKUP(YEAR(B39),Table1[Year],_xlfn.XLOOKUP(Running!C39,Table1[[#Headers],[Q1]:[Q4]],Table1[[Q1]:[Q4]]))=0,D38,_xlfn.XLOOKUP(YEAR(B39),Table1[Year],_xlfn.XLOOKUP(Running!C39,Table1[[#Headers],[Q1]:[Q4]],Table1[[Q1]:[Q4]]))) -> 0.03 | E39: 8.219178082e-05 | K39: 44699 | L39: 0.4768802369 | R39: 3481.702609
B40: 2021-02-03 | C40: Q1 | D40: =IF(_xlfn.XLOOKUP(YEAR(B40),Table1[Year],_xlfn.XLOOKUP(Running!C40,Table1[[#Headers],[Q1]:[Q4]],Table1[[Q1]:[Q4]]))=0,D39,_xlfn.XLOOKUP(YEAR(B40),Table1[Year],_xlfn.XLOOKUP(Running!C40,Table1[[#Headers],[Q1]:[Q4]],Table1[[Q1]:[Q4]]))) -> 0.03 | E40: 8.219178082e-05 | K40: 44700 | L40: 0.4769455629 | R40: 3482.179555
B41: 2021-02-04 | C41: Q1 | D41: =IF(_xlfn.XLOOKUP(YEAR(B41),Table1[Year],_xlfn.XLOOKUP(Running!C41,Table1[[#Headers],[Q1]:[Q4]],Table1[[Q1]:[Q4]]))=0,D40,_xlfn.XLOOKUP(YEAR(B41),Table1[Year],_xlfn.XLOOKUP(Running!C41,Table1[[#Headers],[Q1]:[Q4]],Table1[[Q1]:[Q4]]))) -> 0.03 | E41: 8.219178082e-05 | K41: 44701 | L41: 0.477010898 | R41: 3482.656566
B42: 2021-02-05 | C42: Q1 | D42: =IF(_xlfn.XLOOKUP(YEAR(B42),Table1[Year],_xlfn.XLOOKUP(Running!C42,Table1[[#Headers],[Q1]:[Q4]],Table1[[Q1]:[Q4]]))=0,D41,_xlfn.XLOOKUP(YEAR(B42),Table1[Year],_xlfn.XLOOKUP(Running!C42,Table1[[#Headers],[Q1]:[Q4]],Table1[[Q1]:[Q4]]))) -> 0.03 | E42: 8.219178082e-05 | K42: 44702 | L42: 0.4770762419 | R42: 3483.133642
B43: 2021-02-06 | C43: Q1 | D43: =IF(_xlfn.XLOOKUP(YEAR(B43),Table1[Year],_xlfn.XLOOKUP(Running!C43,Table1[[#Headers],[Q1]:[Q4]],Table1[[Q1]:[Q4]]))=0,D42,_xlfn.XLOOKUP(YEAR(B43),Table1[Year],_xlfn.XLOOKUP(Running!C43,Table1[[#Headers],[Q1]:[Q4]],Table1[[Q1]:[Q4]]))) -> 0.03 | E43: 8.219178082e-05 | K43: 44703 | L43: 0.4771415948 | R43: 3483.610783
B44: 2021-02-07 | C44: Q1 | D44: =IF(_xlfn.XLOOKUP(YEAR(B44),Table1[Year],_xlfn.XLOOKUP(Running!C44,Table1[[#Headers],[Q1]:[Q4]],Table1[[Q1]:[Q4]]))=0,D43,_xlfn.XLOOKUP(YEAR(B44),Table1[Year],_xlfn.XLOOKUP(Running!C44,Table1[[#Headers],[Q1]:[Q4]],Table1[[Q1]:[Q4]]))) -> 0.03 | E44: 8.219178082e-05 | K44: 44704 | L44: 0.4772069567 | R44: 3484.08799
B45: 2021-02-08 | C45: Q1 | D45: =IF(_xlfn.XLOOKUP(YEAR(B45),Table1[Year],_xlfn.XLOOKUP(Running!C45,Table1[[#Headers],[Q1]:[Q4]],Table1[[Q1]:[Q4]]))=0,D44,_xlfn.XLOOKUP(YEAR(B45),Table1[Year],_xlfn.XLOOKUP(Running!C45,Table1[[#Headers],[Q1]:[Q4]],Table1[[Q1]:[Q4]]))) -> 0.03 | E45: 8.219178082e-05 | K45: 44705 | L45: 0.4772723275 | R45: 3484.565263
B46: 2021-02-09 | C46: Q1 | D46: =IF(_xlfn.XLOOKUP(YEAR(B46),Table1[Year],_xlfn.XLOOKUP(Running!C46,Table1[[#Headers],[Q1]:[Q4]],Table1[[Q1]:[Q4]]))=0,D45,_xlfn.XLOOKUP(YEAR(B46),Table1[Year],_xlfn.XLOOKUP(Running!C46,Table1[[#Headers],[Q1]:[Q4]],Table1[[Q1]:[Q4]]))) -> 0.03 | E46: 8.219178082e-05 | K46: 44706 | L46: 0.4773377073 | R46: 3485.0426
B47: 2021-02-10 | C47: Q1 | D47: =IF(_xlfn.XLOOKUP(YEAR(B47),Table1[Year],_xlfn.XLOOKUP(Running!C47,Table1[[#Headers],[Q1]:[Q4]],Table1[[Q1]:[Q4]]))=0,D46,_xlfn.XLOOKUP(YEAR(B47),Table1[Year],_xlfn.XLOOKUP(Running!C47,Table1[[#Headers],[Q1]:[Q4]],Table1[[Q1]:[Q4]]))) -> 0.03 | E47: 8.219178082e-05 | K47: 44707 | L47: 0.477403096 | R47: 3485.520004
B48: 2021-02-11 | C48: Q1 | D48: =IF(_xlfn.XLOOKUP(YEAR(B48),Table1[Year],_xlfn.XLOOKUP(Running!C48,Table1[[#Headers],[Q1]:[Q4]],Table1[[Q1]:[Q4]]))=0,D47,_xlfn.XLOOKUP(YEAR(B48),Table1[Year],_xlfn.XLOOKUP(Running!C48,Table1[[#Headers],[Q1]:[Q4]],Table1[[Q1]:[Q4]]))) -> 0.03 | E48: 8.219178082e-05 | K48: 44708 | L48: 0.4774684937 | R48: 3485.997472
B49: 2021-02-12 | C49: Q1 | D49: =IF(_xlfn.XLOOKUP(YEAR(B49),Table1[Year],_xlfn.XLOOKUP(Running!C49,Table1[[#Headers],[Q1]:[Q4]],Table1[[Q1]:[Q4]]))=0,D48,_xlfn.XLOOKUP(YEAR(B49),Table1[Year],_xlfn.XLOOKUP(Running!C49,Table1[[#Headers],[Q1]:[Q4]],Table1[[Q1]:[Q4]]))) -> 0.03 | E49: 8.219178082e-05 | K49: 44709 | L49: 0.4775339003 | R49: 3486.475006
B50: 2021-02-13 | C50: Q1 | D50: =IF(_xlfn.XLOOKUP(YEAR(B50),Table1[Year],_xlfn.XLOOKUP(Running!C50,Table1[[#Headers],[Q1]:[Q4]],Table1[[Q1]:[Q4]]))=0,D49,_xlfn.XLOOKUP(YEAR(B50),Table1[Year],_xlfn.XLOOKUP(Running!C50,Table1[[#Headers],[Q1]:[Q4]],Table1[[Q1]:[Q4]]))) -> 0.03 | E50: 8.219178082e-05 | K50: 44710 | L50: 0.4775993159 | R50: 3486.952605
B51: 2021-02-14 | C51: Q1 | D51: =IF(_xlfn.XLOOKUP(YEAR(B51),Table1[Year],_xlfn.XLOOKUP(Running!C51,Table1[[#Headers],[Q1]:[Q4]],Table1[[Q1]:[Q4]]))=0,D50,_xlfn.XLOOKUP(YEAR(B51),Table1[Year],_xlfn.XLOOKUP(Running!C51,Table1[[#Headers],[Q1]:[Q4]],Table1[[Q1]:[Q4]]))) -> 0.03 | E51: 8.219178082e-05 | K51: 44711 | L51: 0.4776647405 | R51: 3487.43027
B52: 2021-02-15 | C52: Q1 | D52: =IF(_xlfn.XLOOKUP(YEAR(B52),Table1[Year],_xlfn.XLOOKUP(Running!C52,Table1[[#Headers],[Q1]:[Q4]],Table1[[Q1]:[Q4]]))=0,D51,_xlfn.XLOOKUP(YEAR(B52),Table1[Year],_xlfn.XLOOKUP(Running!C52,Table1[[#Headers],[Q1]:[Q4]],Table1[[Q1]:[Q4]]))) -> 0.03 | E52: 8.219178082e-05 | K52: 44712 | L52: 0.477730174 | R52: 3487.908
B53: 2021-02-16 | C53: Q1 | D53: =IF(_xlfn.XLOOKUP(YEAR(B53),Table1[Year],_xlfn.XLOOKUP(Running!C53,Table1[[#Headers],[Q1]:[Q4]],Table1[[Q1]:[Q4]]))=0,D52,_xlfn.XLOOKUP(YEAR(B53),Table1[Year],_xlfn.XLOOKUP(Running!C53,Table1[[#Headers],[Q1]:[Q4]],Table1[[Q1]:[Q4]]))) -> 0.03 | E53: 8.219178082e-05 | K53: 44713 | L53: 0.4777956165 | R53: 3488.385796
B54: 2021-02-17 | C54: Q1 | D54: =IF(_xlfn.XLOOKUP(YEAR(B54),Table1[Year],_xlfn.XLOOKUP(Running!C54,Table1[[#Headers],[Q1]:[Q4]],Table1[[Q1]:[Q4]]))=0,D53,_xlfn.XLOOKUP(YEAR(B54),Table1[Year],_xlfn.XLOOKUP(Running!C54,Table1[[#Headers],[Q1]:[Q4]],Table1[[Q1]:[Q4]]))) -> 0.03 | E54: 8.219178082e-05 | K54: 44714 | L54: 0.477861068 | R54: 3488.863657
B55: 2021-02-18 | C55: Q1 | D55: =IF(_xlfn.XLOOKUP(YEAR(B55),Table1[Year],_xlfn.XLOOKUP(Running!C55,Table1[[#Headers],[Q1]:[Q4]],Table1[[Q1]:[Q4]]))=0,D54,_xlfn.XLOOKUP(YEAR(B55),Table1[Year],_xlfn.XLOOKUP(Running!C55,Table1[[#Headers],[Q1]:[Q4]],Table1[[Q1]:[Q4]]))) -> 0.03 | E55: 8.219178082e-05 | K55: 44715 | L55: 0.4779265284 | R55: 3489.341583
B56: 2021-02-19 | C56: Q1 | D56: =IF(_xlfn.XLOOKUP(YEAR(B56),Table1[Year],_xlfn.XLOOKUP(Running!C56,Table1[[#Headers],[Q1]:[Q4]],Table1[[Q1]:[Q4]]))=0,D55,_xlfn.XLOOKUP(YEAR(B56),Table1[Year],_xlfn.XLOOKUP(Running!C56,Table1[[#Headers],[Q1]:[Q4]],Table1[[Q1]:[Q4]]))) -> 0.03 | E56: 8.219178082e-05 | K56: 44716 | L56: 0.4779919978 | R56: 3489.819575
B57: 2021-02-20 | C57: Q1 | D57: =IF(_xlfn.XLOOKUP(YEAR(B57),Table1[Year],_xlfn.XLOOKUP(Running!C57,Table1[[#Headers],[Q1]:[Q4]],Table1[[Q1]:[Q4]]))=0,D56,_xlfn.XLOOKUP(YEAR(B57),Table1[Year],_xlfn.XLOOKUP(Running!C57,Table1[[#Headers],[Q1]:[Q4]],Table1[[Q1]:[Q4]]))) -> 0.03 | E57: 8.219178082e-05 | K57: 44717 | L57: 0.4780574761 | R57: 3490.297633
B58: 2021-02-21 | C58: Q1 | D58: =IF(_xlfn.XLOOKUP(YEAR(B58),Table1[Year],_xlfn.XLOOKUP(Running!C58,Table1[[#Headers],[Q1]:[Q4]],Table1[[Q1]:[Q4]]))=0,D57,_xlfn.XLOOKUP(YEAR(B58),Table1[Year],_xlfn.XLOOKUP(Running!C58,Table1[[#Headers],[Q1]:[Q4]],Table1[[Q1]:[Q4]]))) -> 0.03 | E58: 8.219178082e-05 | K58: 44718 | L58: 0.4781229635 | R58: 3490.775756
B59: 2021-02-22 | C59: Q1 | D59: =IF(_xlfn.XLOOKUP(YEAR(B59),Table1[Year],_xlfn.XLOOKUP(Running!C59,Table1[[#Headers],[Q1]:[Q4]],Table1[[Q1]:[Q4]]))=0,D58,_xlfn.XLOOKUP(YEAR(B59),Table1[Year],_xlfn.XLOOKUP(Running!C59,Table1[[#Headers],[Q1]:[Q4]],Table1[[Q1]:[Q4]]))) -> 0.03 | E59: 8.219178082e-05 | K59: 44719 | L59: 0.4781884597 | R59: 3491.253944
B60: 2021-02-23 | C60: Q1 | D60: =IF(_xlfn.XLOOKUP(YEAR(B60),Table1[Year],_xlfn.XLOOKUP(Running!C60,Table1[[#Headers],[Q1]:[Q4]],Table1[[Q1]:[Q4]]))=0,D59,_xlfn.XLOOKUP(YEAR(B60),Table1[Year],_xlfn.XLOOKUP(Running!C60,Table1[[#Headers],[Q1]:[Q4]],Table1[[Q1]:[Q4]]))) -> 0.03 | E60: 8.219178082e-05 | K60: 44720 | L60: 0.478253965 | R60: 3491.732198
B61: 2021-02-24 | C61: Q1 | D61: =IF(_xlfn.XLOOKUP(YEAR(B61),Table1[Year],_xlfn.XLOOKUP(Running!C61,Table1[[#Headers],[Q1]:[Q4]],Table1[[Q1]:[Q4]]))=0,D60,_xlfn.XLOOKUP(YEAR(B61),Table1[Year],_xlfn.XLOOKUP(Running!C61,Table1[[#Headers],[Q1]:[Q4]],Table1[[Q1]:[Q4]]))) -> 0.03 | E61: 8.219178082e-05 | K61: 44721 | L61: 0.4783194793 | R61: 3492.210518
B62: 2021-02-25 | C62: Q1 | D62: =IF(_xlfn.XLOOKUP(YEAR(B62),Table1[Year],_xlfn.XLOOKUP(Running!C62,Table1[[#Headers],[Q1]:[Q4]],Table1[[Q1]:[Q4]]))=0,D61,_xlfn.XLOOKUP(YEAR(B62),Table1[Year],_xlfn.XLOOKUP(Running!C62,Table1[[#Headers],[Q1]:[Q4]],Table1[[Q1]:[Q4]]))) -> 0.03 | E62: 8.219178082e-05 | K62: 44722 | L62: 0.4783850025 | R62: 3492.688903
B63: 2021-02-26 | C63: Q1 | D63: =IF(_xlfn.XLOOKUP(YEAR(B63),Table1[Year],_xlfn.XLOOKUP(Running!C63,Table1[[#Headers],[Q1]:[Q4]],Table1[[Q1]:[Q4]]))=0,D62,_xlfn.XLOOKUP(YEAR(B63),Table1[Year],_xlfn.XLOOKUP(Running!C63,Table1[[#Headers],[Q1]:[Q4]],Table1[[Q1]:[Q4]]))) -> 0.03 | E63: 8.219178082e-05 | K63: 44723 | L63: 0.4784505347 | R63: 3493.167353
B64: 2021-02-27 | C64: Q1 | D64: =IF(_xlfn.XLOOKUP(YEAR(B64),Table1[Year],_xlfn.XLOOKUP(Running!C64,Table1[[#Headers],[Q1]:[Q4]],Table1[[Q1]:[Q4]]))=0,D63,_xlfn.XLOOKUP(YEAR(B64),Table1[Year],_xlfn.XLOOKUP(Running!C64,Table1[[#Headers],[Q1]:[Q4]],Table1[[Q1]:[Q4]]))) -> 0.03 | E64: 8.219178082e-05 | K64: 44724 | L64: 0.4785160758 | R64: 3493.645869
B65: 2021-02-28 | C65: Q1 | D65: =IF(_xlfn.XLOOKUP(YEAR(B65),Table1[Year],_xlfn.XLOOKUP(Running!C65,Table1[[#Headers],[Q1]:[Q4]],Table1[[Q1]:[Q4]]))=0,D64,_xlfn.XLOOKUP(YEAR(B65),Table1[Year],_xlfn.XLOOKUP(Running!C65,Table1[[#Headers],[Q1]:[Q4]],Table1[[Q1]:[Q4]]))) -> 0.03 | E65: 8.219178082e-05 | K65: 44725 | L65: 0.478581626 | R65: 3494.124451
B66: 2021-03-01 | C66: Q1 | D66: =IF(_xlfn.XLOOKUP(YEAR(B66),Table1[Year],_xlfn.XLOOKUP(Running!C66,Table1[[#Headers],[Q1]:[Q4]],Table1[[Q1]:[Q4]]))=0,D65,_xlfn.XLOOKUP(YEAR(B66),Table1[Year],_xlfn.XLOOKUP(Running!C66,Table1[[#Headers],[Q1]:[Q4]],Table1[[Q1]:[Q4]]))) -> 0.03 | E66: 8.219178082e-05 | K66: 44726 | L66: 0.4786471851 | R66: 3494.603098
B67: 2021-03-02 | C67: Q1 | D67: =IF(_xlfn.XLOOKUP(YEAR(B67),Table1[Year],_xlfn.XLOOKUP(Running!C67,Table1[[#Headers],[Q1]:[Q4]],Table1[[Q1]:[Q4]]))=0,D66,_xlfn.XLOOKUP(YEAR(B67),Table1[Year],_xlfn.XLOOKUP(Running!C67,Table1[[#Headers],[Q1]:[Q4]],Table1[[Q1]:[Q4]]))) -> 0.03 | E67: 8.219178082e-05 | K67: 44727 | L67: 0.4787127532 | R67: 3495.081811
B68: 2021-03-03 | C68: Q1 | D68: =IF(_xlfn.XLOOKUP(YEAR(B68),Table1[Year],_xlfn.XLOOKUP(Running!C68,Table1[[#Headers],[Q1]:[Q4]],Table1[[Q1]:[Q4]]))=0,D67,_xlfn.XLOOKUP(YEAR(B68),Table1[Year],_xlfn.XLOOKUP(Running!C68,Table1[[#Headers],[Q1]:[Q4]],Table1[[Q1]:[Q4]]))) -> 0.03 | E68: 8.219178082e-05 | K68: 44728 | L68: 0.4787783303 | R68: 3495.560589
B69: 2021-03-04 | C69: Q1 | D69: =IF(_xlfn.XLOOKUP(YEAR(B69),Table1[Year],_xlfn.XLOOKUP(Running!C69,Table1[[#Headers],[Q1]:[Q4]],Table1[[Q1]:[Q4]]))=0,D68,_xlfn.XLOOKUP(YEAR(B69),Table1[Year],_xlfn.XLOOKUP(Running!C69,Table1[[#Headers],[Q1]:[Q4]],Table1[[Q1]:[Q4]]))) -> 0.03 | E69: 8.219178082e-05 | K69: 44729 | L69: 0.4788439164 | R69: 3496.039433
B70: 2021-03-05 | C70: Q1 | D70: =IF(_xlfn.XLOOKUP(YEAR(B70),Table1[Year],_xlfn.XLOOKUP(Running!C70,Table1[[#Headers],[Q1]:[Q4]],Table1[[Q1]:[Q4]]))=0,D69,_xlfn.XLOOKUP(YEAR(B70),Table1[Year],_xlfn.XLOOKUP(Running!C70,Table1[[#Headers],[Q1]:[Q4]],Table1[[Q1]:[Q4]]))) -> 0.03 | E70: 8.219178082e-05 | K70: 44730 | L70: 0.4789095114 | R70: 3496.518343
B71: 2021-03-06 | C71: Q1 | D71: =IF(_xlfn.XLOOKUP(YEAR(B71),Table1[Year],_xlfn.XLOOKUP(Running!C71,Table1[[#Headers],[Q1]:[Q4]],Table1[[Q1]:[Q4]]))=0,D70,_xlfn.XLOOKUP(YEAR(B71),Table1[Year],_xlfn.XLOOKUP(Running!C71,Table1[[#Headers],[Q1]:[Q4]],Table1[[Q1]:[Q4]]))) -> 0.03 | E71: 8.219178082e-05 | K71: 44731 | L71: 0.4789751155 | R71: 3496.997318
B72: 2021-03-07 | C72: ="Q"&ROUNDUP(MONTH(B72)/3,0) -> Q1 | D72: =IF(_xlfn.XLOOKUP(YEAR(B72),Table1[Year],_xlfn.XLOOKUP(Running!C72,Table1[[#Headers],[Q1]:[Q4]],Table1[[Q1]:[Q4]]))=0,D71,_xlfn.XLOOKUP(YEAR(B72),Table1[Year],_xlfn.XLOOKUP(Running!C72,Table1[[#Headers],[Q1]:[Q4]],Table1[[Q1]:[Q4]]))) -> 0.03 | E72: =D72/365 -> 8.219178082e-05 | K72: 44732 | L72: =ROUNDUP(_xlfn.XLOOKUP(K72,$B$7:$B$6215,$E$7:$E$6215)*R71,10) -> 0.4790407285 | R72: =SUM(L72:Q72)+R71 -> 3497.476358
B73: =B72+1 -> 2021-03-08 | C73: Q1 | D73: =IF(_xlfn.XLOOKUP(YEAR(B73),Table1[Year],_xlfn.XLOOKUP(Running!C73,Table1[[#Headers],[Q1]:[Q4]],Table1[[Q1]:[Q4]]))=0,D72,_xlfn.XLOOKUP(YEAR(B73),Table1[Year],_xlfn.XLOOKUP(Running!C73,Table1[[#Headers],[Q1]:[Q4]],Table1[[Q1]:[Q4]]))) -> 0.03 | E73: 8.219178082e-05 | K73: =K72+1 -> 44733 | L73: 0.4791063505 | R73: 3497.955465
B74: 2021-03-09 | C74: Q1 | D74: =IF(_xlfn.XLOOKUP(YEAR(B74),Table1[Year],_xlfn.XLOOKUP(Running!C74,Table1[[#Headers],[Q1]:[Q4]],Table1[[Q1]:[Q4]]))=0,D73,_xlfn.XLOOKUP(YEAR(B74),Table1[Year],_xlfn.XLOOKUP(Running!C74,Table1[[#Headers],[Q1]:[Q4]],Table1[[Q1]:[Q4]]))) -> 0.03 | E74: 8.219178082e-05 | K74: 44734 | L74: 0.4791719815 | R74: 3498.434637
B75: 2021-03-10 | C75: Q1 | D75: =IF(_xlfn.XLOOKUP(YEAR(B75),Table1[Year],_xlfn.XLOOKUP(Running!C75,Table1[[#Headers],[Q1]:[Q4]],Table1[[Q1]:[Q4]]))=0,D74,_xlfn.XLOOKUP(YEAR(B75),Table1[Year],_xlfn.XLOOKUP(Running!C75,Table1[[#Headers],[Q1]:[Q4]],Table1[[Q1]:[Q4]]))) -> 0.03 | E75: 8.219178082e-05 | K75: 44735 | L75: 0.4792376215 | R75: 3498.913874
B76: 2021-03-11 | C76: Q1 | D76: =IF(_xlfn.XLOOKUP(YEAR(B76),Table1[Year],_xlfn.XLOOKUP(Running!C76,Table1[[#Headers],[Q1]:[Q4]],Table1[[Q1]:[Q4]]))=0,D75,_xlfn.XLOOKUP(YEAR(B76),Table1[Year],_xlfn.XLOOKUP(Running!C76,Table1[[#Headers],[Q1]:[Q4]],Table1[[Q1]:[Q4]]))) -> 0.03 | E76: 8.219178082e-05 | K76: 44736 | L76: 0.4793032705 | R76: 3499.393178
B77: 2021-03-12 | C77: Q1 | D77: =IF(_xlfn.XLOOKUP(YEAR(B77),Table1[Year],_xlfn.XLOOKUP(Running!C77,Table1[[#Headers],[Q1]:[Q4]],Table1[[Q1]:[Q4]]))=0,D76,_xlfn.XLOOKUP(YEAR(B77),Table1[Year],_xlfn.XLOOKUP(Running!C77,Table1[[#Headers],[Q1]:[Q4]],Table1[[Q1]:[Q4]]))) -> 0.03 | E77: 8.219178082e-05 | K77: 44737 | L77: 0.4793689285 | R77: 3499.872547
B78: 2021-03-13 | C78: Q1 | D78: =IF(_xlfn.XLOOKUP(YEAR(B78),Table1[Year],_xlfn.XLOOKUP(Running!C78,Table1[[#Headers],[Q1]:[Q4]],Table1[[Q1]:[Q4]]))=0,D77,_xlfn.XLOOKUP(YEAR(B78),Table1[Year],_xlfn.XLOOKUP(Running!C78,Table1[[#Headers],[Q1]:[Q4]],Table1[[Q1]:[Q4]]))) -> 0.03 | E78: 8.219178082e-05 | K78: 44738 | L78: 0.4794345955 | R78: 3500.351981
B79: 2021-03-14 | C79: Q1 | D79: =IF(_xlfn.XLOOKUP(YEAR(B79),Table1[Year],_xlfn.XLOOKUP(Running!C79,Table1[[#Headers],[Q1]:[Q4]],Table1[[Q1]:[Q4]]))=0,D78,_xlfn.XLOOKUP(YEAR(B79),Table1[Year],_xlfn.XLOOKUP(Running!C79,Table1[[#Headers],[Q1]:[Q4]],Table1[[Q1]:[Q4]]))) -> 0.03 | E79: 8.219178082e-05 | K79: 44739 | L79: 0.4795002715 | R79: 3500.831482
B80: 2021-03-15 | C80: Q1 | D80: =IF(_xlfn.XLOOKUP(YEAR(B80),Table1[Year],_xlfn.XLOOKUP(Running!C80,Table1[[#Headers],[Q1]:[Q4]],Table1[[Q1]:[Q4]]))=0,D79,_xlfn.XLOOKUP(YEAR(B80),Table1[Year],_xlfn.XLOOKUP(Running!C80,Table1[[#Headers],[Q1]:[Q4]],Table1[[Q1]:[Q4]]))) -> 0.03 | E80: 8.219178082e-05 | K80: 44740 | L80: 0.4795659564 | R80: 3501.311047
B81: 2021-03-16 | C81: Q1 | D81: =IF(_xlfn.XLOOKUP(YEAR(B81),Table1[Year],_xlfn.XLOOKUP(Running!C81,Table1[[#Headers],[Q1]:[Q4]],Table1[[Q1]:[Q4]]))=0,D80,_xlfn.XLOOKUP(YEAR(B81),Table1[Year],_xlfn.XLOOKUP(Running!C81,Table1[[#Headers],[Q1]:[Q4]],Table1[[Q1]:[Q4]]))) -> 0.03 | E81: 8.219178082e-05 | K81: 44741 | L81: 0.4796316504 | R81: 3501.790679
B82: 2021-03-17 | C82: Q1 | D82: =IF(_xlfn.XLOOKUP(YEAR(B82),Table1[Year],_xlfn.XLOOKUP(Running!C82,Table1[[#Headers],[Q1]:[Q4]],Table1[[Q1]:[Q4]]))=0,D81,_xlfn.XLOOKUP(YEAR(B82),Table1[Year],_xlfn.XLOOKUP(Running!C82,Table1[[#Headers],[Q1]:[Q4]],Table1[[Q1]:[Q4]]))) -> 0.03 | E82: 8.219178082e-05 | K82: 44742 | L82: 0.4796973534 | R82: 3502.270376
B83: 2021-03-18 | C83: Q1 | D83: =IF(_xlfn.XLOOKUP(YEAR(B83),Table1[Year],_xlfn.XLOOKUP(Running!C83,Table1[[#Headers],[Q1]:[Q4]],Table1[[Q1]:[Q4]]))=0,D82,_xlfn.XLOOKUP(YEAR(B83),Table1[Year],_xlfn.XLOOKUP(Running!C83,Table1[[#Headers],[Q1]:[Q4]],Table1[[Q1]:[Q4]]))) -> 0.03 | E83: 8.219178082e-05 | K83: 44743 | L83: 0.3838104523 | R83: 3502.654187
B84: 2021-03-19 | C84: Q1 | D84: =IF(_xlfn.XLOOKUP(YEAR(B84),Table1[Year],_xlfn.XLOOKUP(Running!C84,Table1[[#Headers],[Q1]:[Q4]],Table1[[Q1]:[Q4]]))=0,D83,_xlfn.XLOOKUP(YEAR(B84),Table1[Year],_xlfn.XLOOKUP(Running!C84,Table1[[#Headers],[Q1]:[Q4]],Table1[[Q1]:[Q4]]))) -> 0.03 | E84: 8.219178082e-05 | K84: 44744 | L84: 0.3838525137 | R84: 3503.038039
B85: 2021-03-20 | C85: Q1 | D85: =IF(_xlfn.XLOOKUP(YEAR(B85),Table1[Year],_xlfn.XLOOKUP(Running!C85,Table1[[#Headers],[Q1]:[Q4]],Table1[[Q1]:[Q4]]))=0,D84,_xlfn.XLOOKUP(YEAR(B85),Table1[Year],_xlfn.XLOOKUP(Running!C85,Table1[[#Headers],[Q1]:[Q4]],Table1[[Q1]:[Q4]]))) -> 0.03 | E85: 8.219178082e-05 | K85: 44745 | L85: 0.3838945797 | R85: 3503.421934
B86: 2021-03-21 | C86: Q1 | D86: =IF(_xlfn.XLOOKUP(YEAR(B86),Table1[Year],_xlfn.XLOOKUP(Running!C86,Table1[[#Headers],[Q1]:[Q4]],Table1[[Q1]:[Q4]]))=0,D85,_xlfn.XLOOKUP(YEAR(B86),Table1[Year],_xlfn.XLOOKUP(Running!C86,Table1[[#Headers],[Q1]:[Q4]],Table1[[Q1]:[Q4]]))) -> 0.03 | E86: 8.219178082e-05 | K86: 44746 | L86: 0.3839366504 | R86: 3503.805871
B87: 2021-03-22 | C87: Q1 | D87: =IF(_xlfn.XLOOKUP(YEAR(B87),Table1[Year],_xlfn.XLOOKUP(Running!C87,Table1[[#Headers],[Q1]:[Q4]],Table1[[Q1]:[Q4]]))=0,D86,_xlfn.XLOOKUP(YEAR(B87),Table1[Year],_xlfn.XLOOKUP(Running!C87,Table1[[#Headers],[Q1]:[Q4]],Table1[[Q1]:[Q4]]))) -> 0.03 | E87: 8.219178082e-05 | K87: 44747 | L87: 0.3839787256 | R87: 3504.189849
B88: 2021-03-23 | C88: Q1 | D88: =IF(_xlfn.XLOOKUP(YEAR(B88),Table1[Year],_xlfn.XLOOKUP(Running!C88,Table1[[#Headers],[Q1]:[Q4]],Table1[[Q1]:[Q4]]))=0,D87,_xlfn.XLOOKUP(YEAR(B88),Table1[Year],_xlfn.XLOOKUP(Running!C88,Table1[[#Headers],[Q1]:[Q4]],Table1[[Q1]:[Q4]]))) -> 0.03 | E88: 8.219178082e-05 | K88: 44748 | L88: 0.3840208055 | R88: 3504.57387
B89: 2021-03-24 | C89: Q1 | D89: =IF(_xlfn.XLOOKUP(YEAR(B89),Table1[Year],_xlfn.XLOOKUP(Running!C89,Table1[[#Headers],[Q1]:[Q4]],Table1[[Q1]:[Q4]]))=0,D88,_xlfn.XLOOKUP(YEAR(B89),Table1[Year],_xlfn.XLOOKUP(Running!C89,Table1[[#Headers],[Q1]:[Q4]],Table1[[Q1]:[Q4]]))) -> 0.03 | E89: 8.219178082e-05 | K89: 44749 | L89: 0.3840628899 | R89: 3504.957933
B90: 2021-03-25 | C90: Q1 | D90: =IF(_xlfn.XLOOKUP(YEAR(B90),Table1[Year],_xlfn.XLOOKUP(Running!C90,Table1[[#Headers],[Q1]:[Q4]],Table1[[Q1]:[Q4]]))=0,D89,_xlfn.XLOOKUP(YEAR(B90),Table1[Year],_xlfn.XLOOKUP(Running!C90,Table1[[#Headers],[Q1]:[Q4]],Table1[[Q1]:[Q4]]))) -> 0.03 | E90: 8.219178082e-05 | K90: 44750 | L90: 0.384104979 | R90: 3505.342038
B91: 2021-03-26 | C91: Q1 | D91: =IF(_xlfn.XLOOKUP(YEAR(B91),Table1[Year],_xlfn.XLOOKUP(Running!C91,Table1[[#Headers],[Q1]:[Q4]],Table1[[Q1]:[Q4]]))=0,D90,_xlfn.XLOOKUP(YEAR(B91),Table1[Year],_xlfn.XLOOKUP(Running!C91,Table1[[#Headers],[Q1]:[Q4]],Table1[[Q1]:[Q4]]))) -> 0.03 | E91: 8.219178082e-05 | K91: 44751 | L91: 0.3841470727 | R91: 3505.726185
B92: 2021-03-27 | C92: Q1 | D92: =IF(_xlfn.XLOOKUP(YEAR(B92),Table1[Year],_xlfn.XLOOKUP(Running!C92,Table1[[#Headers],[Q1]:[Q4]],Table1[[Q1]:[Q4]]))=0,D91,_xlfn.XLOOKUP(YEAR(B92),Table1[Year],_xlfn.XLOOKUP(Running!C92,Table1[[#Headers],[Q1]:[Q4]],Table1[[Q1]:[Q4]]))) -> 0.03 | E92: 8.219178082e-05 | K92: 44752 | L92: 0.384189171 | R92: 3506.110374
B93: 2021-03-28 | C93: Q1 | D93: =IF(_xlfn.XLOOKUP(YEAR(B93),Table1[Year],_xlfn.XLOOKUP(Running!C93,Table1[[#Headers],[Q1]:[Q4]],Table1[[Q1]:[Q4]]))=0,D92,_xlfn.XLOOKUP(YEAR(B93),Table1[Year],_xlfn.XLOOKUP(Running!C93,Table1[[#Headers],[Q1]:[Q4]],Table1[[Q1]:[Q4]]))) -> 0.03 | E93: 8.219178082e-05 | K93: 44753 | L93: 0.3842312739 | R93: 3506.494606
B94: 2021-03-29 | C94: Q1 | D94: =IF(_xlfn.XLOOKUP(YEAR(B94),Table1[Year],_xlfn.XLOOKUP(Running!C94,Table1[[#Headers],[Q1]:[Q4]],Table1[[Q1]:[Q4]]))=0,D93,_xlfn.XLOOKUP(YEAR(B94),Table1[Year],_xlfn.XLOOKUP(Running!C94,Table1[[#Headers],[Q1]:[Q4]],Table1[[Q1]:[Q4]]))) -> 0.03 | E94: 8.219178082e-05 | K94: 44754 | L94: 0.3842733815 | R94: 3506.878879
B95: 2021-03-30 | C95: Q1 | D95: =IF(_xlfn.XLOOKUP(YEAR(B95),Table1[Year],_xlfn.XLOOKUP(Running!C95,Table1[[#Headers],[Q1]:[Q4]],Table1[[Q1]:[Q4]]))=0,D94,_xlfn.XLOOKUP(YEAR(B95),Table1[Year],_xlfn.XLOOKUP(Running!C95,Table1[[#Headers],[Q1]:[Q4]],Table1[[Q1]:[Q4]]))) -> 0.03 | E95: 8.219178082e-05 | K95: 44755 | L95: 0.3843154936 | R95: 3507.263194
B96: 2021-03-31 | C96: Q1 | D96: =IF(_xlfn.XLOOKUP(YEAR(B96),Table1[Year],_xlfn.XLOOKUP(Running!C96,Table1[[#Headers],[Q1]:[Q4]],Table1[[Q1]:[Q4]]))=0,D95,_xlfn.XLOOKUP(YEAR(B96),Table1[Year],_xlfn.XLOOKUP(Running!C96,Table1[[#Headers],[Q1]:[Q4]],Table1[[Q1]:[Q4]]))) -> 0.03 | E96: 8.219178082e-05 | K96: 44756 | L96: 0.3843576104 | R96: 3507.647552
B97: 2021-04-01 | C97: Q2 | D97: =IF(_xlfn.XLOOKUP(YEAR(B97),Table1[Year],_xlfn.XLOOKUP(Running!C97,Table1[[#Headers],[Q1]:[Q4]],Table1[[Q1]:[Q4]]))=0,D96,_xlfn.XLOOKUP(YEAR(B97),Table1[Year],_xlfn.XLOOKUP(Running!C97,Table1[[#Headers],[Q1]:[Q4]],Table1[[Q1]:[Q4]]))) -> 0.03 | E97: 8.219178082e-05 | K97: 44757 | L97: 0.3843997318 | R97: 3508.031952
B98: 2021-04-02 | C98: Q2 | D98: =IF(_xlfn.XLOOKUP(YEAR(B98),Table1[Year],_xlfn.XLOOKUP(Running!C98,Table1[[#Headers],[Q1]:[Q4]],Table1[[Q1]:[Q4]]))=0,D97,_xlfn.XLOOKUP(YEAR(B98),Table1[Year],_xlfn.XLOOKUP(Running!C98,Table1[[#Headers],[Q1]:[Q4]],Table1[[Q1]:[Q4]]))) -> 0.03 | E98: 8.219178082e-05 | K98: 44758 | L98: 0.3844418578 | R98: 3508.416394
B99: 2021-04-03 | C99: Q2 | D99: =IF(_xlfn.XLOOKUP(YEAR(B99),Table1[Year],_xlfn.XLOOKUP(Running!C99,Table1[[#Headers],[Q1]:[Q4]],Table1[[Q1]:[Q4]]))=0,D98,_xlfn.XLOOKUP(YEAR(B99),Table1[Year],_xlfn.XLOOKUP(Running!C99,Table1[[#Headers],[Q1]:[Q4]],Table1[[Q1]:[Q4]]))) -> 0.03 | E99: 8.219178082e-05 | K99: 44759 | L99: 0.3844839884 | R99: 3508.800878
B100: 2021-04-04 | C100: Q2 | D100: =IF(_xlfn.XLOOKUP(YEAR(B100),Table1[Year],_xlfn.XLOOKUP(Running!C100,Table1[[#Headers],[Q1]:[Q4]],Table1[[Q1]:[Q4]]))=0,D99,_xlfn.XLOOKUP(YEAR(B100),Table1[Year],_xlfn.XLOOKUP(Running!C100,Table1[[#Headers],[Q1]:[Q4]],Table1[[Q1]:[Q4]]))) -> 0.03 | E100: 8.219178082e-05 | K100: 44760 | L100: 0.3845261236 | R100: 3509.185404
B101: 2021-04-05 | C101: Q2 | D101: =IF(_xlfn.XLOOKUP(YEAR(B101),Table1[Year],_xlfn.XLOOKUP(Running!C101,Table1[[#Headers],[Q1]:[Q4]],Table1[[Q1]:[Q4]]))=0,D100,_xlfn.XLOOKUP(YEAR(B101),Table1[Year],_xlfn.XLOOKUP(Running!C101,Table1[[#Headers],[Q1]:[Q4]],Table1[[Q1]:[Q4]]))) -> 0.03 | E101: 8.219178082e-05 | K101: 44761 | L101: 0.3845682635 | R101: 3509.569972
B102: 2021-04-06 | C102: Q2 | D102: =IF(_xlfn.XLOOKUP(YEAR(B102),Table1[Year],_xlfn.XLOOKUP(Running!C102,Table1[[#Headers],[Q1]:[Q4]],Table1[[Q1]:[Q4]]))=0,D101,_xlfn.XLOOKUP(YEAR(B102),Table1[Year],_xlfn.XLOOKUP(Running!C102,Table1[[#Headers],[Q1]:[Q4]],Table1[[Q1]:[Q4]]))) -> 0.03 | E102: 8.219178082e-05 | K102: 44762 | L102: 0.3846104079 | R102: 3509.954582
B103: 2021-04-07 | C103: Q2 | D103: =IF(_xlfn.XLOOKUP(YEAR(B103),Table1[Year],_xlfn.XLOOKUP(Running!C103,Table1[[#Headers],[Q1]:[Q4]],Table1[[Q1]:[Q4]]))=0,D102,_xlfn.XLOOKUP(YEAR(B103),Table1[Year],_xlfn.XLOOKUP(Running!C103,Table1[[#Headers],[Q1]:[Q4]],Table1[[Q1]:[Q4]]))) -> 0.03 | E103: 8.219178082e-05 | K103: 44763 | L103: 0.384652557 | R103: 3510.339235
B104: 2021-04-08 | C104: Q2 | D104: =IF(_xlfn.XLOOKUP(YEAR(B104),Table1[Year],_xlfn.XLOOKUP(Running!C104,Table1[[#Headers],[Q1]:[Q4]],Table1[[Q1]:[Q4]]))=0,D103,_xlfn.XLOOKUP(YEAR(B104),Table1[Year],_xlfn.XLOOKUP(Running!C104,Table1[[#Headers],[Q1]:[Q4]],Table1[[Q1]:[Q4]]))) -> 0.03 | E104: 8.219178082e-05 | K104: 44764 | L104: 0.3846947107 | R104: 3510.72393
B105: 2021-04-09 | C105: Q2 | D105: =IF(_xlfn.XLOOKUP(YEAR(B105),Table1[Year],_xlfn.XLOOKUP(Running!C105,Table1[[#Headers],[Q1]:[Q4]],Table1[[Q1]:[Q4]]))=0,D104,_xlfn.XLOOKUP(YEAR(B105),Table1[Year],_xlfn.XLOOKUP(Running!C105,Table1[[#Headers],[Q1]:[Q4]],Table1[[Q1]:[Q4]]))) -> 0.03 | E105: 8.219178082e-05 | K105: 44765 | L105: 0.3847368691 | R105: 3511.108667
B106: 2021-04-10 | C106: Q2 | D106: =IF(_xlfn.XLOOKUP(YEAR(B106),Table1[Year],_xlfn.XLOOKUP(Running!C106,Table1[[#Headers],[Q1]:[Q4]],Table1[[Q1]:[Q4]]))=0,D105,_xlfn.XLOOKUP(YEAR(B106),Table1[Year],_xlfn.XLOOKUP(Running!C106,Table1[[#Headers],[Q1]:[Q4]],Table1[[Q1]:[Q4]]))) -> 0.03 | E106: 8.219178082e-05 | K106: 44766 | L106: 0.384779032 | R106: 3511.493446
B107: 2021-04-11 | C107: Q2 | D107: =IF(_xlfn.XLOOKUP(YEAR(B107),Table1[Year],_xlfn.XLOOKUP(Running!C107,Table1[[#Headers],[Q1]:[Q4]],Table1[[Q1]:[Q4]]))=0,D106,_xlfn.XLOOKUP(YEAR(B107),Table1[Year],_xlfn.XLOOKUP(Running!C107,Table1[[#Headers],[Q1]:[Q4]],Table1[[Q1]:[Q4]]))) -> 0.03 | E107: 8.219178082e-05 | K107: 44767 | L107: 0.3848211996 | R107: 3511.878267
B108: 2021-04-12 | C108: Q2 | D108: =IF(_xlfn.XLOOKUP(YEAR(B108),Table1[Year],_xlfn.XLOOKUP(Running!C108,Table1[[#Headers],[Q1]:[Q4]],Table1[[Q1]:[Q4]]))=0,D107,_xlfn.XLOOKUP(YEAR(B108),Table1[Year],_xlfn.XLOOKUP(Running!C108,Table1[[#Headers],[Q1]:[Q4]],Table1[[Q1]:[Q4]]))) -> 0.03 | E108: 8.219178082e-05 | K108: 44768 | L108: 0.3848633718 | R108: 3512.26313
B109: 2021-04-13 | C109: Q2 | D109: =IF(_xlfn.XLOOKUP(YEAR(B109),Table1[Year],_xlfn.XLOOKUP(Running!C109,Table1[[#Headers],[Q1]:[Q4]],Table1[[Q1]:[Q4]]))=0,D108,_xlfn.XLOOKUP(YEAR(B109),Table1[Year],_xlfn.XLOOKUP(Running!C109,Table1[[#Headers],[Q1]:[Q4]],Table1[[Q1]:[Q4]]))) -> 0.03 | E109: 8.219178082e-05 | K109: 44769 | L109: 0.3849055486 | R109: 3512.648036
B110: 2021-04-14 | C110: Q2 | D110: =IF(_xlfn.XLOOKUP(YEAR(B110),Table1[Year],_xlfn.XLOOKUP(Running!C110,Table1[[#Headers],[Q1]:[Q4]],Table1[[Q1]:[Q4]]))=0,D109,_xlfn.XLOOKUP(YEAR(B110),Table1[Year],_xlfn.XLOOKUP(Running!C110,Table1[[#Headers],[Q1]:[Q4]],Table1[[Q1]:[Q4]]))) -> 0.03 | E110: 8.219178082e-05 | K110: 44770 | L110: 0.38494773 | R110: 3513.032983
B111: 2021-04-15 | C111: Q2 | D111: =IF(_xlfn.XLOOKUP(YEAR(B111),Table1[Year],_xlfn.XLOOKUP(Running!C111,Table1[[#Headers],[Q1]:[Q4]],Table1[[Q1]:[Q4]]))=0,D110,_xlfn.XLOOKUP(YEAR(B111),Table1[Year],_xlfn.XLOOKUP(Running!C111,Table1[[#Headers],[Q1]:[Q4]],Table1[[Q1]:[Q4]]))) -> 0.03 | E111: 8.219178082e-05 | K111: 44771 | L111: 0.384989916 | R111: 3513.417973
B112: 2021-04-16 | C112: Q2 | D112: =IF(_xlfn.XLOOKUP(YEAR(B112),Table1[Year],_xlfn.XLOOKUP(Running!C112,Table1[[#Headers],[Q1]:[Q4]],Table1[[Q1]:[Q4]]))=0,D111,_xlfn.XLOOKUP(YEAR(B112),Table1[Year],_xlfn.XLOOKUP(Running!C112,Table1[[#Headers],[Q1]:[Q4]],Table1[[Q1]:[Q4]]))) -> 0.03 | E112: 8.219178082e-05 | K112: 44772 | L112: 0.3850321067 | R112: 3513.803005
B113: 2021-04-17 | C113: Q2 | D113: =IF(_xlfn.XLOOKUP(YEAR(B113),Table1[Year],_xlfn.XLOOKUP(Running!C113,Table1[[#Headers],[Q1]:[Q4]],Table1[[Q1]:[Q4]]))=0,D112,_xlfn.XLOOKUP(YEAR(B113),Table1[Year],_xlfn.XLOOKUP(Running!C113,Table1[[#Headers],[Q1]:[Q4]],Table1[[Q1]:[Q4]]))) -> 0.03 | E113: 8.219178082e-05 | K113: 44773 | L113: 0.385074302 | R113: 3514.18808
B114: 2021-04-18 | C114: Q2 | D114: =IF(_xlfn.XLOOKUP(YEAR(B114),Table1[Year],_xlfn.XLOOKUP(Running!C114,Table1[[#Headers],[Q1]:[Q4]],Table1[[Q1]:[Q4]]))=0,D113,_xlfn.XLOOKUP(YEAR(B114),Table1[Year],_xlfn.XLOOKUP(Running!C114,Table1[[#Headers],[Q1]:[Q4]],Table1[[Q1]:[Q4]]))) -> 0.03 | E114: 8.219178082e-05 | K114: =K113+1 -> 44774 | L114: 0.3851165019 | R114: 3514.573196
B115: 2021-04-19 | C115: Q2 | D115: =IF(_xlfn.XLOOKUP(YEAR(B115),Table1[Year],_xlfn.XLOOKUP(Running!C115,Table1[[#Headers],[Q1]:[Q4]],Table1[[Q1]:[Q4]]))=0,D114,_xlfn.XLOOKUP(YEAR(B115),Table1[Year],_xlfn.XLOOKUP(Running!C115,Table1[[#Headers],[Q1]:[Q4]],Table1[[Q1]:[Q4]]))) -> 0.03 | E115: 8.219178082e-05 | K115: 44775 | L115: 0.3851587065 | R115: 3514.958355
B116: 2021-04-20 | C116: Q2 | D116: =IF(_xlfn.XLOOKUP(YEAR(B116),Table1[Year],_xlfn.XLOOKUP(Running!C116,Table1[[#Headers],[Q1]:[Q4]],Table1[[Q1]:[Q4]]))=0,D115,_xlfn.XLOOKUP(YEAR(B116),Table1[Year],_xlfn.XLOOKUP(Running!C116,Table1[[#Headers],[Q1]:[Q4]],Table1[[Q1]:[Q4]]))) -> 0.03 | E116: 8.219178082e-05 | K116: 44776 | L116: 0.3852009157 | R116: 3515.343556
B117: 2021-04-21 | C117: Q2 | D117: =IF(_xlfn.XLOOKUP(YEAR(B117),Table1[Year],_xlfn.XLOOKUP(Running!C117,Table1[[#Headers],[Q1]:[Q4]],Table1[[Q1]:[Q4]]))=0,D116,_xlfn.XLOOKUP(YEAR(B117),Table1[Year],_xlfn.XLOOKUP(Running!C117,Table1[[#Headers],[Q1]:[Q4]],Table1[[Q1]:[Q4]]))) -> 0.03 | E117: 8.219178082e-05 | K117: 44777 | L117: 0.3852431295 | R117: 3515.728799
B118: 2021-04-22 | C118: Q2 | D118: =IF(_xlfn.XLOOKUP(YEAR(B118),Table1[Year],_xlfn.XLOOKUP(Running!C118,Table1[[#Headers],[Q1]:[Q4]],Table1[[Q1]:[Q4]]))=0,D117,_xlfn.XLOOKUP(YEAR(B118),Table1[Year],_xlfn.XLOOKUP(Running!C118,Table1[[#Headers],[Q1]:[Q4]],Table1[[Q1]:[Q4]]))) -> 0.03 | E118: 8.219178082e-05 | K118: 44778 | L118: 0.3852853479 | R118: 3516.114084
B119: 2021-04-23 | C119: Q2 | D119: =IF(_xlfn.XLOOKUP(YEAR(B119),Table1[Year],_xlfn.XLOOKUP(Running!C119,Table1[[#Headers],[Q1]:[Q4]],Table1[[Q1]:[Q4]]))=0,D118,_xlfn.XLOOKUP(YEAR(B119),Table1[Year],_xlfn.XLOOKUP(Running!C119,Table1[[#Headers],[Q1]:[Q4]],Table1[[Q1]:[Q4]]))) -> 0.03 | E119: 8.219178082e-05 | K119: 44779 | L119: 0.3853275709 | R119: 3516.499412
B120: 2021-04-24 | C120: Q2 | D120: =IF(_xlfn.XLOOKUP(YEAR(B120),Table1[Year],_xlfn.XLOOKUP(Running!C120,Table1[[#Headers],[Q1]:[Q4]],Table1[[Q1]:[Q4]]))=0,D119,_xlfn.XLOOKUP(YEAR(B120),Table1[Year],_xlfn.XLOOKUP(Running!C120,Table1[[#Headers],[Q1]:[Q4]],Table1[[Q1]:[Q4]]))) -> 0.03 | E120: 8.219178082e-05 | K120: 44780 | L120: 0.3853697986 | R120: 3516.884782
B121: 2021-04-25 | C121: Q2 | D121: =IF(_xlfn.XLOOKUP(YEAR(B121),Table1[Year],_xlfn.XLOOKUP(Running!C121,Table1[[#Headers],[Q1]:[Q4]],Table1[[Q1]:[Q4]]))=0,D120,_xlfn.XLOOKUP(YEAR(B121),Table1[Year],_xlfn.XLOOKUP(Running!C121,Table1[[#Headers],[Q1]:[Q4]],Table1[[Q1]:[Q4]]))) -> 0.03 | E121: 8.219178082e-05 | K121: 44781 | L121: 0.3854120309 | R121: 3517.270194
B122: 2021-04-26 | C122: Q2 | D122: =IF(_xlfn.XLOOKUP(YEAR(B122),Table1[Year],_xlfn.XLOOKUP(Running!C122,Table1[[#Headers],[Q1]:[Q4]],Table1[[Q1]:[Q4]]))=0,D121,_xlfn.XLOOKUP(YEAR(B122),Table1[Year],_xlfn.XLOOKUP(Running!C122,Table1[[#Headers],[Q1]:[Q4]],Table1[[Q1]:[Q4]]))) -> 0.03 | E122: 8.219178082e-05 | K122: 44782 | L122: 0.3854542679 | R122: 3517.655648
B123: 2021-04-27 | C123: Q2 | D123: =IF(_xlfn.XLOOKUP(YEAR(B123),Table1[Year],_xlfn.XLOOKUP(Running!C123,Table1[[#Headers],[Q1]:[Q4]],Table1[[Q1]:[Q4]]))=0,D122,_xlfn.XLOOKUP(YEAR(B123),Table1[Year],_xlfn.XLOOKUP(Running!C123,Table1[[#Headers],[Q1]:[Q4]],Table1[[Q1]:[Q4]]))) -> 0.03 | E123: 8.219178082e-05 | K123: 44783 | L123: 0.3854965094 | R123: 3518.041145
B124: 2021-04-28 | C124: Q2 | D124: =IF(_xlfn.XLOOKUP(YEAR(B124),Table1[Year],_xlfn.XLOOKUP(Running!C124,Table1[[#Headers],[Q1]:[Q4]],Table1[[Q1]:[Q4]]))=0,D123,_xlfn.XLOOKUP(YEAR(B124),Table1[Year],_xlfn.XLOOKUP(Running!C124,Table1[[#Headers],[Q1]:[Q4]],Table1[[Q1]:[Q4]]))) -> 0.03 | E124: 8.219178082e-05 | K124: 44784 | L124: 0.3855387556 | R124: 3518.426683
B125: 2021-04-29 | C125: Q2 | D125: =IF(_xlfn.XLOOKUP(YEAR(B125),Table1[Year],_xlfn.XLOOKUP(Running!C125,Table1[[#Headers],[Q1]:[Q4]],Table1[[Q1]:[Q4]]))=0,D124,_xlfn.XLOOKUP(YEAR(B125),Table1[Year],_xlfn.XLOOKUP(Running!C125,Table1[[#Headers],[Q1]:[Q4]],Table1[[Q1]:[Q4]]))) -> 0.03 | E125: 8.219178082e-05 | K125: 44785 | L125: 0.3855810064 | R125: 3518.812264
B126: 2021-04-30 | C126: Q2 | D126: =IF(_xlfn.XLOOKUP(YEAR(B126),Table1[Year],_xlfn.XLOOKUP(Running!C126,Table1[[#Headers],[Q1]:[Q4]],Table1[[Q1]:[Q4]]))=0,D125,_xlfn.XLOOKUP(YEAR(B126),Table1[Year],_xlfn.XLOOKUP(Running!C126,Table1[[#Headers],[Q1]:[Q4]],Table1[[Q1]:[Q4]]))) -> 0.03 | E126: 8.219178082e-05 | K126: 44786 | L126: 0.3856232619 | R126: 3519.197888
B127: 2021-05-01 | C127: Q2 | D127: =IF(_xlfn.XLOOKUP(YEAR(B127),Table1[Year],_xlfn.XLOOKUP(Running!C127,Table1[[#Headers],[Q1]:[Q4]],Table1[[Q1]:[Q4]]))=0,D126,_xlfn.XLOOKUP(YEAR(B127),Table1[Year],_xlfn.XLOOKUP(Running!C127,Table1[[#Headers],[Q1]:[Q4]],Table1[[Q1]:[Q4]]))) -> 0.03 | E127: 8.219178082e-05 | K127: 44787 | L127: 0.385665522 | R127: 3519.583553
B128: 2021-05-02 | C128: Q2 | D128: =IF(_xlfn.XLOOKUP(YEAR(B128),Table1[Year],_xlfn.XLOOKUP(Running!C128,Table1[[#Headers],[Q1]:[Q4]],Table1[[Q1]:[Q4]]))=0,D127,_xlfn.XLOOKUP(YEAR(B128),Table1[Year],_xlfn.XLOOKUP(Running!C128,Table1[[#Headers],[Q1]:[Q4]],Table1[[Q1]:[Q4]]))) -> 0.03 | E128: 8.219178082e-05 | K128: 44788 | L128: 0.3857077867 | R128: 3519.969261
B129: 2021-05-03 | C129: Q2 | D129: =IF(_xlfn.XLOOKUP(YEAR(B129),Table1[Year],_xlfn.XLOOKUP(Running!C129,Table1[[#Headers],[Q1]:[Q4]],Table1[[Q1]:[Q4]]))=0,D128,_xlfn.XLOOKUP(YEAR(B129),Table1[Year],_xlfn.XLOOKUP(Running!C129,Table1[[#Headers],[Q1]:[Q4]],Table1[[Q1]:[Q4]]))) -> 0.03 | E129: 8.219178082e-05 | K129: 44789 | L129: 0.385750056 | R129: 3520.355011
B130: 2021-05-04 | C130: Q2 | D130: =IF(_xlfn.XLOOKUP(YEAR(B130),Table1[Year],_xlfn.XLOOKUP(Running!C130,Table1[[#Headers],[Q1]:[Q4]],Table1[[Q1]:[Q4]]))=0,D129,_xlfn.XLOOKUP(YEAR(B130),Table1[Year],_xlfn.XLOOKUP(Running!C130,Table1[[#Headers],[Q1]:[Q4]],Table1[[Q1]:[Q4]]))) -> 0.03 | E130: 8.219178082e-05 | K130: 44790 | L130: 0.38579233 | R130: 3520.740803
B131: 2021-05-05 | C131: Q2 | D131: =IF(_xlfn.XLOOKUP(YEAR(B131),Table1[Year],_xlfn.XLOOKUP(Running!C131,Table1[[#Headers],[Q1]:[Q4]],Table1[[Q1]:[Q4]]))=0,D130,_xlfn.XLOOKUP(YEAR(B131),Table1[Year],_xlfn.XLOOKUP(Running!C131,Table1[[#Headers],[Q1]:[Q4]],Table1[[Q1]:[Q4]]))) -> 0.03 | E131: 8.219178082e-05 | K131: 44791 | L131: 0.3858346086 | R131: 3521.126638
B132: 2021-05-06 | C132: Q2 | D132: =IF(_xlfn.XLOOKUP(YEAR(B132),Table1[Year],_xlfn.XLOOKUP(Running!C132,Table1[[#Headers],[Q1]:[Q4]],Table1[[Q1]:[Q4]]))=0,D131,_xlfn.XLOOKUP(YEAR(B132),Table1[Year],_xlfn.XLOOKUP(Running!C132,Table1[[#Headers],[Q1]:[Q4]],Table1[[Q1]:[Q4]]))) -> 0.03 | E132: 8.219178082e-05 | K132: 44792 | L132: 0.3858768919 | R132: 3521.512515
B133: 2021-05-07 | C133: Q2 | D133: =IF(_xlfn.XLOOKUP(YEAR(B133),Table1[Year],_xlfn.XLOOKUP(Running!C133,Table1[[#Headers],[Q1]:[Q4]],Table1[[Q1]:[Q4]]))=0,D132,_xlfn.XLOOKUP(YEAR(B133),Table1[Year],_xlfn.XLOOKUP(Running!C133,Table1[[#Headers],[Q1]:[Q4]],Table1[[Q1]:[Q4]]))) -> 0.03 | E133: 8.219178082e-05 | K133: 44793 | L133: 0.3859191798 | R133: 3521.898434
B134: 2021-05-08 | C134: Q2 | D134: =IF(_xlfn.XLOOKUP(YEAR(B134),Table1[Year],_xlfn.XLOOKUP(Running!C134,Table1[[#Headers],[Q1]:[Q4]],Table1[[Q1]:[Q4]]))=0,D133,_xlfn.XLOOKUP(YEAR(B134),Table1[Year],_xlfn.XLOOKUP(Running!C134,Table1[[#Headers],[Q1]:[Q4]],Table1[[Q1]:[Q4]]))) -> 0.03 | E134: 8.219178082e-05 | K134: 44794 | L134: 0.3859614723 | R134: 3522.284395
B135: 2021-05-09 | C135: Q2 | D135: =IF(_xlfn.XLOOKUP(YEAR(B135),Table1[Year],_xlfn.XLOOKUP(Running!C135,Table1[[#Headers],[Q1]:[Q4]],Table1[[Q1]:[Q4]]))=0,D134,_xlfn.XLOOKUP(YEAR(B135),Table1[Year],_xlfn.XLOOKUP(Running!C135,Table1[[#Headers],[Q1]:[Q4]],Table1[[Q1]:[Q4]]))) -> 0.03 | E135: 8.219178082e-05 | K135: 44795 | L135: 0.3860037694 | R135: 3522.670399
B136: 2021-05-10 | C136: ="Q"&ROUNDUP(MONTH(B136)/3,0) -> Q2 | D136: =IF(_xlfn.XLOOKUP(YEAR(B136),Table1[Year],_xlfn.XLOOKUP(Running!C136,Table1[[#Headers],[Q1]:[Q4]],Table1[[Q1]:[Q4]]))=0,D135,_xlfn.XLOOKUP(YEAR(B136),Table1[Year],_xlfn.XLOOKUP(Running!C136,Table1[[#Headers],[Q1]:[Q4]],Table1[[Q1]:[Q4]]))) -> 0.03 | E136: =D136/365 -> 8.219178082e-05 | K136: 44796 | L136: =ROUNDUP(_xlfn.XLOOKUP(K136,$B$7:$B$6215,$E$7:$E$6215)*R135,10) -> 0.3860460712 | R136: =SUM(L136:Q136)+R135 -> 3523.056445
B137: =B136+1 -> 2021-05-11 | C137: Q2 | D137: =IF(_xlfn.XLOOKUP(YEAR(B137),Table1[Year],_xlfn.XLOOKUP(Running!C137,Table1[[#Headers],[Q1]:[Q4]],Table1[[Q1]:[Q4]]))=0,D136,_xlfn.XLOOKUP(YEAR(B137),Table1[Year],_xlfn.XLOOKUP(Running!C137,Table1[[#Headers],[Q1]:[Q4]],Table1[[Q1]:[Q4]]))) -> 0.03 | E137: 8.219178082e-05 | K137: 44797 | L137: 0.3860883776 | R137: 3523.442534
B138: 2021-05-12 | C138: Q2 | D138: =IF(_xlfn.XLOOKUP(YEAR(B138),Table1[Year],_xlfn.XLOOKUP(Running!C138,Table1[[#Headers],[Q1]:[Q4]],Table1[[Q1]:[Q4]]))=0,D137,_xlfn.XLOOKUP(YEAR(B138),Table1[Year],_xlfn.XLOOKUP(Running!C138,Table1[[#Headers],[Q1]:[Q4]],Table1[[Q1]:[Q4]]))) -> 0.03 | E138: 8.219178082e-05 | K138: 44798 | L138: 0.3861306887 | R138: 3523.828664
B139: 2021-05-13 | C139: Q2 | D139: =IF(_xlfn.XLOOKUP(YEAR(B139),Table1[Year],_xlfn.XLOOKUP(Running!C139,Table1[[#Headers],[Q1]:[Q4]],Table1[[Q1]:[Q4]]))=0,D138,_xlfn.XLOOKUP(YEAR(B139),Table1[Year],_xlfn.XLOOKUP(Running!C139,Table1[[#Headers],[Q1]:[Q4]],Table1[[Q1]:[Q4]]))) -> 0.03 | E139: 8.219178082e-05 | K139: 44799 | L139: 0.3861730044 | R139: 3524.214837
B140: 2021-05-14 | C140: Q2 | D140: =IF(_xlfn.XLOOKUP(YEAR(B140),Table1[Year],_xlfn.XLOOKUP(Running!C140,Table1[[#Headers],[Q1]:[Q4]],Table1[[Q1]:[Q4]]))=0,D139,_xlfn.XLOOKUP(YEAR(B140),Table1[Year],_xlfn.XLOOKUP(Running!C140,Table1[[#Headers],[Q1]:[Q4]],Table1[[Q1]:[Q4]]))) -> 0.03 | E140: 8.219178082e-05 | K140: 44800 | L140: 0.3862153247 | R140: 3524.601053
B141: 2021-05-15 | C141: Q2 | D141: =IF(_xlfn.XLOOKUP(YEAR(B141),Table1[Year],_xlfn.XLOOKUP(Running!C141,Table1[[#Headers],[Q1]:[Q4]],Table1[[Q1]:[Q4]]))=0,D140,_xlfn.XLOOKUP(YEAR(B141),Table1[Year],_xlfn.XLOOKUP(Running!C141,Table1[[#Headers],[Q1]:[Q4]],Table1[[Q1]:[Q4]]))) -> 0.03 | E141: 8.219178082e-05 | K141: 44801 | L141: 0.3862576497 | R141: 3524.98731
B142: 2021-05-16 | C142: Q2 | D142: =IF(_xlfn.XLOOKUP(YEAR(B142),Table1[Year],_xlfn.XLOOKUP(Running!C142,Table1[[#Headers],[Q1]:[Q4]],Table1[[Q1]:[Q4]]))=0,D141,_xlfn.XLOOKUP(YEAR(B142),Table1[Year],_xlfn.XLOOKUP(Running!C142,Table1[[#Headers],[Q1]:[Q4]],Table1[[Q1]:[Q4]]))) -> 0.03 | E142: 8.219178082e-05 | K142: 44802 | L142: 0.3862999793 | R142: 3525.37361
B143: 2021-05-17 | C143: Q2 | D143: =IF(_xlfn.XLOOKUP(YEAR(B143),Table1[Year],_xlfn.XLOOKUP(Running!C143,Table1[[#Headers],[Q1]:[Q4]],Table1[[Q1]:[Q4]]))=0,D142,_xlfn.XLOOKUP(YEAR(B143),Table1[Year],_xlfn.XLOOKUP(Running!C143,Table1[[#Headers],[Q1]:[Q4]],Table1[[Q1]:[Q4]]))) -> 0.03 | E143: 8.219178082e-05 | K143: 44803 | L143: 0.3863423135 | R143: 3525.759953
B144: 2021-05-18 | C144: Q2 | D144: =IF(_xlfn.XLOOKUP(YEAR(B144),Table1[Year],_xlfn.XLOOKUP(Running!C144,Table1[[#Headers],[Q1]:[Q4]],Table1[[Q1]:[Q4]]))=0,D143,_xlfn.XLOOKUP(YEAR(B144),Table1[Year],_xlfn.XLOOKUP(Running!C144,Table1[[#Headers],[Q1]:[Q4]],Table1[[Q1]:[Q4]]))) -> 0.03 | E144: 8.219178082e-05 | K144: 44804 | L144: 0.3863846524 | R144: 3526.146337
B145: 2021-05-19 | C145: Q2 | D145: =IF(_xlfn.XLOOKUP(YEAR(B145),Table1[Year],_xlfn.XLOOKUP(Running!C145,Table1[[#Headers],[Q1]:[Q4]],Table1[[Q1]:[Q4]]))=0,D144,_xlfn.XLOOKUP(YEAR(B145),Table1[Year],_xlfn.XLOOKUP(Running!C145,Table1[[#Headers],[Q1]:[Q4]],Table1[[Q1]:[Q4]]))) -> 0.03 | E145: 8.219178082e-05 | K145: 44805 | L145: 0.3864269959 | R145: 3526.532764
B146: 2021-05-20 | C146: Q2 | D146: =IF(_xlfn.XLOOKUP(YEAR(B146),Table1[Year],_xlfn.XLOOKUP(Running!C146,Table1[[#Headers],[Q1]:[Q4]],Table1[[Q1]:[Q4]]))=0,D145,_xlfn.XLOOKUP(YEAR(B146),Table1[Year],_xlfn.XLOOKUP(Running!C146,Table1[[#Headers],[Q1]:[Q4]],Table1[[Q1]:[Q4]]))) -> 0.03 | E146: 8.219178082e-05 | K146: 44806 | L146: 0.3864693441 | R146: 3526.919234
B147: 2021-05-21 | C147: Q2 | D147: =IF(_xlfn.XLOOKUP(YEAR(B147),Table1[Year],_xlfn.XLOOKUP(Running!C147,Table1[[#Headers],[Q1]:[Q4]],Table1[[Q1]:[Q4]]))=0,D146,_xlfn.XLOOKUP(YEAR(B147),Table1[Year],_xlfn.XLOOKUP(Running!C147,Table1[[#Headers],[Q1]:[Q4]],Table1[[Q1]:[Q4]]))) -> 0.03 | E147: 8.219178082e-05 | K147: 44807 | L147: 0.3865116969 | R147: 3527.305745
B148: 2021-05-22 | C148: Q2 | D148: =IF(_xlfn.XLOOKUP(YEAR(B148),Table1[Year],_xlfn.XLOOKUP(Running!C148,Table1[[#Headers],[Q1]:[Q4]],Table1[[Q1]:[Q4]]))=0,D147,_xlfn.XLOOKUP(YEAR(B148),Table1[Year],_xlfn.XLOOKUP(Running!C148,Table1[[#Headers],[Q1]:[Q4]],Table1[[Q1]:[Q4]]))) -> 0.03 | E148: 8.219178082e-05 | K148: 44808 | L148: 0.3865540543 | R148: 3527.692299
B149: 2021-05-23 | C149: Q2 | D149: =IF(_xlfn.XLOOKUP(YEAR(B149),Table1[Year],_xlfn.XLOOKUP(Running!C149,Table1[[#Headers],[Q1]:[Q4]],Table1[[Q1]:[Q4]]))=0,D148,_xlfn.XLOOKUP(YEAR(B149),Table1[Year],_xlfn.XLOOKUP(Running!C149,Table1[[#Headers],[Q1]:[Q4]],Table1[[Q1]:[Q4]]))) -> 0.03 | E149: 8.219178082e-05 | K149: 44809 | L149: 0.3865964164 | R149: 3528.078896
B150: 2021-05-24 | C150: Q2 | D150: =IF(_xlfn.XLOOKUP(YEAR(B150),Table1[Year],_xlfn.XLOOKUP(Running!C150,Table1[[#Headers],[Q1]:[Q4]],Table1[[Q1]:[Q4]]))=0,D149,_xlfn.XLOOKUP(YEAR(B150),Table1[Year],_xlfn.XLOOKUP(Running!C150,Table1[[#Headers],[Q1]:[Q4]],Table1[[Q1]:[Q4]]))) -> 0.03 | E150: 8.219178082e-05 | K150: 44810 | L150: 0.3866387831 | R150: 3528.465535
B151: 2021-05-25 | C151: Q2 | D151: =IF(_xlfn.XLOOKUP(YEAR(B151),Table1[Year],_xlfn.XLOOKUP(Running!C151,Table1[[#Headers],[Q1]:[Q4]],Table1[[Q1]:[Q4]]))=0,D150,_xlfn.XLOOKUP(YEAR(B151),Table1[Year],_xlfn.XLOOKUP(Running!C151,Table1[[#Headers],[Q1]:[Q4]],Table1[[Q1]:[Q4]]))) -> 0.03 | E151: 8.219178082e-05 | K151: 44811 | L151: 0.3866811545 | R151: 3528.852216
B152: 2021-05-26 | C152: Q2 | D152: =IF(_xlfn.XLOOKUP(YEAR(B152),Table1[Year],_xlfn.XLOOKUP(Running!C152,Table1[[#Headers],[Q1]:[Q4]],Table1[[Q1]:[Q4]]))=0,D151,_xlfn.XLOOKUP(YEAR(B152),Table1[Year],_xlfn.XLOOKUP(Running!C152,Table1[[#Headers],[Q1]:[Q4]],Table1[[Q1]:[Q4]]))) -> 0.03 | E152: 8.219178082e-05 | K152: 44812 | L152: 0.3867235305 | R152: 3529.238939
B153: 2021-05-27 | C153: Q2 | D153: =IF(_xlfn.XLOOKUP(YEAR(B153),Table1[Year],_xlfn.XLOOKUP(Running!C153,Table1[[#Headers],[Q1]:[Q4]],Table1[[Q1]:[Q4]]))=0,D152,_xlfn.XLOOKUP(YEAR(B153),Table1[Year],_xlfn.XLOOKUP(Running!C153,Table1[[#Headers],[Q1]:[Q4]],Table1[[Q1]:[Q4]]))) -> 0.03 | E153: 8.219178082e-05 | K153: 44813 | L153: 0.3867659112 | R153: 3529.625705
B154: 2021-05-28 | C154: Q2 | D154: =IF(_xlfn.XLOOKUP(YEAR(B154),Table1[Year],_xlfn.XLOOKUP(Running!C154,Table1[[#Headers],[Q1]:[Q4]],Table1[[Q1]:[Q4]]))=0,D153,_xlfn.XLOOKUP(YEAR(B154),Table1[Year],_xlfn.XLOOKUP(Running!C154,Table1[[#Headers],[Q1]:[Q4]],Table1[[Q1]:[Q4]]))) -> 0.03 | E154: 8.219178082e-05 | K154: 44814 | L154: 0.3868082965 | R154: 3530.012513
B155: 2021-05-29 | C155: Q2 | D155: =IF(_xlfn.XLOOKUP(YEAR(B155),Table1[Year],_xlfn.XLOOKUP(Running!C155,Table1[[#Headers],[Q1]:[Q4]],Table1[[Q1]:[Q4]]))=0,D154,_xlfn.XLOOKUP(YEAR(B155),Table1[Year],_xlfn.XLOOKUP(Running!C155,Table1[[#Headers],[Q1]:[Q4]],Table1[[Q1]:[Q4]]))) -> 0.03 | E155: 8.219178082e-05 | K155: 44815 | L155: 0.3868506865 | R155: 3530.399364
B156: 2021-05-30 | C156: Q2 | D156: =IF(_xlfn.XLOOKUP(YEAR(B156),Table1[Year],_xlfn.XLOOKUP(Running!C156,Table1[[#Headers],[Q1]:[Q4]],Table1[[Q1]:[Q4]]))=0,D155,_xlfn.XLOOKUP(YEAR(B156),Table1[Year],_xlfn.XLOOKUP(Running!C156,Table1[[#Headers],[Q1]:[Q4]],Table1[[Q1]:[Q4]]))) -> 0.03 | E156: 8.219178082e-05 | K156: 44816 | L156: 0.3868930811 | R156: 3530.786257
B157: 2021-05-31 | C157: Q2 | D157: =IF(_xlfn.XLOOKUP(YEAR(B157),Table1[Year],_xlfn.XLOOKUP(Running!C157,Table1[[#Headers],[Q1]:[Q4]],Table1[[Q1]:[Q4]]))=0,D156,_xlfn.XLOOKUP(YEAR(B157),Table1[Year],_xlfn.XLOOKUP(Running!C157,Table1[[#Headers],[Q1]:[Q4]],Table1[[Q1]:[Q4]]))) -> 0.03 | E157: 8.219178082e-05 | K157: 44817 | L157: 0.3869354803 | R157: 3531.173193
B158: 2021-06-01 | C158: Q2 | D158: =IF(_xlfn.XLOOKUP(YEAR(B158),Table1[Year],_xlfn.XLOOKUP(Running!C158,Table1[[#Headers],[Q1]:[Q4]],Table1[[Q1]:[Q4]]))=0,D157,_xlfn.XLOOKUP(YEAR(B158),Table1[Year],_xlfn.XLOOKUP(Running!C158,Table1[[#Headers],[Q1]:[Q4]],Table1[[Q1]:[Q4]]))) -> 0.03 | E158: 8.219178082e-05 | K158: 44818 | L158: 0.3869778842 | R158: 3531.560171
B159: 2021-06-02 | C159: Q2 | D159: =IF(_xlfn.XLOOKUP(YEAR(B159),Table1[Year],_xlfn.XLOOKUP(Running!C159,Table1[[#Headers],[Q1]:[Q4]],Table1[[Q1]:[Q4]]))=0,D158,_xlfn.XLOOKUP(YEAR(B159),Table1[Year],_xlfn.XLOOKUP(Running!C159,Table1[[#Headers],[Q1]:[Q4]],Table1[[Q1]:[Q4]]))) -> 0.03 | E159: 8.219178082e-05 | K159: 44819 | L159: 0.3870202927 | R159: 3531.947191
B160: 2021-06-03 | C160: Q2 | D160: =IF(_xlfn.XLOOKUP(YEAR(B160),Table1[Year],_xlfn.XLOOKUP(Running!C160,Table1[[#Headers],[Q1]:[Q4]],Table1[[Q1]:[Q4]]))=0,D159,_xlfn.XLOOKUP(YEAR(B160),Table1[Year],_xlfn.XLOOKUP(Running!C160,Table1[[#Headers],[Q1]:[Q4]],Table1[[Q1]:[Q4]]))) -> 0.03 | E160: 8.219178082e-05 | K160: 44820 | L160: 0.3870627059 | R160: 3532.334254
B161: 2021-06-04 | C161: Q2 | D161: =IF(_xlfn.XLOOKUP(YEAR(B161),Table1[Year],_xlfn.XLOOKUP(Running!C161,Table1[[#Headers],[Q1]:[Q4]],Table1[[Q1]:[Q4]]))=0,D160,_xlfn.XLOOKUP(YEAR(B161),Table1[Year],_xlfn.XLOOKUP(Running!C161,Table1[[#Headers],[Q1]:[Q4]],Table1[[Q1]:[Q4]]))) -> 0.03 | E161: 8.219178082e-05 | K161: 44821 | L161: 0.3871051237 | R161: 3532.721359
B162: 2021-06-05 | C162: Q2 | D162: =IF(_xlfn.XLOOKUP(YEAR(B162),Table1[Year],_xlfn.XLOOKUP(Running!C162,Table1[[#Headers],[Q1]:[Q4]],Table1[[Q1]:[Q4]]))=0,D161,_xlfn.XLOOKUP(YEAR(B162),Table1[Year],_xlfn.XLOOKUP(Running!C162,Table1[[#Headers],[Q1]:[Q4]],Table1[[Q1]:[Q4]]))) -> 0.03 | E162: 8.219178082e-05 | K162: 44822 | L162: 0.3871475462 | R162: 3533.108506
B163: 2021-06-06 | C163: Q2 | D163: =IF(_xlfn.XLOOKUP(YEAR(B163),Table1[Year],_xlfn.XLOOKUP(Running!C163,Table1[[#Headers],[Q1]:[Q4]],Table1[[Q1]:[Q4]]))=0,D162,_xlfn.XLOOKUP(YEAR(B163),Table1[Year],_xlfn.XLOOKUP(Running!C163,Table1[[#Headers],[Q1]:[Q4]],Table1[[Q1]:[Q4]]))) -> 0.03 | E163: 8.219178082e-05 | K163: 44823 | L163: 0.3871899733 | R163: 3533.495696
B164: 2021-06-07 | C164: Q2 | D164: =IF(_xlfn.XLOOKUP(YEAR(B164),Table1[Year],_xlfn.XLOOKUP(Running!C164,Table1[[#Headers],[Q1]:[Q4]],Table1[[Q1]:[Q4]]))=0,D163,_xlfn.XLOOKUP(YEAR(B164),Table1[Year],_xlfn.XLOOKUP(Running!C164,Table1[[#Headers],[Q1]:[Q4]],Table1[[Q1]:[Q4]]))) -> 0.03 | E164: 8.219178082e-05 | K164: 44824 | L164: 0.3872324051 | R164: 3533.882929
B165: 2021-06-08 | C165: Q2 | D165: =IF(_xlfn.XLOOKUP(YEAR(B165),Table1[Year],_xlfn.XLOOKUP(Running!C165,Table1[[#Headers],[Q1]:[Q4]],Table1[[Q1]:[Q4]]))=0,D164,_xlfn.XLOOKUP(YEAR(B165),Table1[Year],_xlfn.XLOOKUP(Running!C165,Table1[[#Headers],[Q1]:[Q4]],Table1[[Q1]:[Q4]]))) -> 0.03 | E165: 8.219178082e-05 | K165: 44825 | L165: 0.3872748415 | R165: 3534.270203
B166: 2021-06-09 | C166: Q2 | D166: =IF(_xlfn.XLOOKUP(YEAR(B166),Table1[Year],_xlfn.XLOOKUP(Running!C166,Table1[[#Headers],[Q1]:[Q4]],Table1[[Q1]:[Q4]]))=0,D165,_xlfn.XLOOKUP(YEAR(B166),Table1[Year],_xlfn.XLOOKUP(Running!C166,Table1[[#Headers],[Q1]:[Q4]],Table1[[Q1]:[Q4]]))) -> 0.03 | E166: 8.219178082e-05 | K166: 44826 | L166: 0.3873172826 | R166: 3534.657521
B167: 2021-06-10 | C167: Q2 | D167: =IF(_xlfn.XLOOKUP(YEAR(B167),Table1[Year],_xlfn.XLOOKUP(Running!C167,Table1[[#Headers],[Q1]:[Q4]],Table1[[Q1]:[Q4]]))=0,D166,_xlfn.XLOOKUP(YEAR(B167),Table1[Year],_xlfn.XLOOKUP(Running!C167,Table1[[#Headers],[Q1]:[Q4]],Table1[[Q1]:[Q4]]))) -> 0.03 | E167: 8.219178082e-05 | K167: 44827 | L167: 0.3873597284 | R167: 3535.04488
B168: 2021-06-11 | C168: Q2 | D168: =IF(_xlfn.XLOOKUP(YEAR(B168),Table1[Year],_xlfn.XLOOKUP(Running!C168,Table1[[#Headers],[Q1]:[Q4]],Table1[[Q1]:[Q4]]))=0,D167,_xlfn.XLOOKUP(YEAR(B168),Table1[Year],_xlfn.XLOOKUP(Running!C168,Table1[[#Headers],[Q1]:[Q4]],Table1[[Q1]:[Q4]]))) -> 0.03 | E168: 8.219178082e-05 | K168: 44828 | L168: 0.3874021787 | R168: 3535.432283
B169: 2021-06-12 | C169: Q2 | D169: =IF(_xlfn.XLOOKUP(YEAR(B169),Table1[Year],_xlfn.XLOOKUP(Running!C169,Table1[[#Headers],[Q1]:[Q4]],Table1[[Q1]:[Q4]]))=0,D168,_xlfn.XLOOKUP(YEAR(B169),Table1[Year],_xlfn.XLOOKUP(Running!C169,Table1[[#Headers],[Q1]:[Q4]],Table1[[Q1]:[Q4]]))) -> 0.03 | E169: 8.219178082e-05 | K169: 44829 | L169: 0.3874446338 | R169: 3535.819727
B170: 2021-06-13 | C170: Q2 | D170: =IF(_xlfn.XLOOKUP(YEAR(B170),Table1[Year],_xlfn.XLOOKUP(Running!C170,Table1[[#Headers],[Q1]:[Q4]],Table1[[Q1]:[Q4]]))=0,D169,_xlfn.XLOOKUP(YEAR(B170),Table1[Year],_xlfn.XLOOKUP(Running!C170,Table1[[#Headers],[Q1]:[Q4]],Table1[[Q1]:[Q4]]))) -> 0.03 | E170: 8.219178082e-05 | K170: 44830 | L170: 0.3874870935 | R170: 3536.207214
B171: 2021-06-14 | C171: Q2 | D171: =IF(_xlfn.XLOOKUP(YEAR(B171),Table1[Year],_xlfn.XLOOKUP(Running!C171,Table1[[#Headers],[Q1]:[Q4]],Table1[[Q1]:[Q4]]))=0,D170,_xlfn.XLOOKUP(YEAR(B171),Table1[Year],_xlfn.XLOOKUP(Running!C171,Table1[[#Headers],[Q1]:[Q4]],Table1[[Q1]:[Q4]]))) -> 0.03 | E171: 8.219178082e-05 | K171: 44831 | L171: 0.3875295578 | R171: 3536.594744
B172: 2021-06-15 | C172: Q2 | D172: =IF(_xlfn.XLOOKUP(YEAR(B172),Table1[Year],_xlfn.XLOOKUP(Running!C172,Table1[[#Headers],[Q1]:[Q4]],Table1[[Q1]:[Q4]]))=0,D171,_xlfn.XLOOKUP(YEAR(B172),Table1[Year],_xlfn.XLOOKUP(Running!C172,Table1[[#Headers],[Q1]:[Q4]],Table1[[Q1]:[Q4]]))) -> 0.03 | E172: 8.219178082e-05 | K172: 44832 | L172: 0.3875720268 | R172: 3536.982316
B173: 2021-06-16 | C173: Q2 | D173: =IF(_xlfn.XLOOKUP(YEAR(B173),Table1[Year],_xlfn.XLOOKUP(Running!C173,Table1[[#Headers],[Q1]:[Q4]],Table1[[Q1]:[Q4]]))=0,D172,_xlfn.XLOOKUP(YEAR(B173),Table1[Year],_xlfn.XLOOKUP(Running!C173,Table1[[#Headers],[Q1]:[Q4]],Table1[[Q1]:[Q4]]))) -> 0.03 | E173: 8.219178082e-05 | K173: 44833 | L173: 0.3876145004 | R173: 3537.36993
B174: 2021-06-17 | C174: Q2 | D174: =IF(_xlfn.XLOOKUP(YEAR(B174),Table1[Year],_xlfn.XLOOKUP(Running!C174,Table1[[#Headers],[Q1]:[Q4]],Table1[[Q1]:[Q4]]))=0,D173,_xlfn.XLOOKUP(YEAR(B174),Table1[Year],_xlfn.XLOOKUP(Running!C174,Table1[[#Headers],[Q1]:[Q4]],Table1[[Q1]:[Q4]]))) -> 0.03 | E174: 8.219178082e-05 | K174: 44834 | L174: 0.3876569787 | R174: 3537.757587
B175: 2021-06-18 | C175: Q2 | D175: =IF(_xlfn.XLOOKUP(YEAR(B175),Table1[Year],_xlfn.XLOOKUP(Running!C175,Table1[[#Headers],[Q1]:[Q4]],Table1[[Q1]:[Q4]]))=0,D174,_xlfn.XLOOKUP(YEAR(B175),Table1[Year],_xlfn.XLOOKUP(Running!C175,Table1[[#Headers],[Q1]:[Q4]],Table1[[Q1]:[Q4]]))) -> 0.03 | E175: 8.219178082e-05 | K175: 44835 | L175: 0.2907745963 | R175: 3538.048362
B176: 2021-06-19 | C176: Q2 | D176: =IF(_xlfn.XLOOKUP(YEAR(B176),Table1[Year],_xlfn.XLOOKUP(Running!C176,Table1[[#Headers],[Q1]:[Q4]],Table1[[Q1]:[Q4]]))=0,D175,_xlfn.XLOOKUP(YEAR(B176),Table1[Year],_xlfn.XLOOKUP(Running!C176,Table1[[#Headers],[Q1]:[Q4]],Table1[[Q1]:[Q4]]))) -> 0.03 | E176: 8.219178082e-05 | K176: 44836 | L176: 0.2907984956 | R176: 3538.339161
B177: 2021-06-20 | C177: Q2 | D177: =IF(_xlfn.XLOOKUP(YEAR(B177),Table1[Year],_xlfn.XLOOKUP(Running!C177,Table1[[#Headers],[Q1]:[Q4]],Table1[[Q1]:[Q4]]))=0,D176,_xlfn.XLOOKUP(YEAR(B177),Table1[Year],_xlfn.XLOOKUP(Running!C177,Table1[[#Headers],[Q1]:[Q4]],Table1[[Q1]:[Q4]]))) -> 0.03 | E177: 8.219178082e-05 | K177: 44837 | L177: 0.2908223968 | R177: 3538.629983
B178: 2021-06-21 | C178: Q2 | D178: =IF(_xlfn.XLOOKUP(YEAR(B178),Table1[Year],_xlfn.XLOOKUP(Running!C178,Table1[[#Headers],[Q1]:[Q4]],Table1[[Q1]:[Q4]]))=0,D177,_xlfn.XLOOKUP(YEAR(B178),Table1[Year],_xlfn.XLOOKUP(Running!C178,Table1[[#Headers],[Q1]:[Q4]],Table1[[Q1]:[Q4]]))) -> 0.03 | E178: 8.219178082e-05 | K178: =K177+1 -> 44838 | L178: 0.2908463 | R178: 3538.920829
B179: 2021-06-22 | C179: Q2 | D179: =IF(_xlfn.XLOOKUP(YEAR(B179),Table1[Year],_xlfn.XLOOKUP(Running!C179,Table1[[#Headers],[Q1]:[Q4]],Table1[[Q1]:[Q4]]))=0,D178,_xlfn.XLOOKUP(YEAR(B179),Table1[Year],_xlfn.XLOOKUP(Running!C179,Table1[[#Headers],[Q1]:[Q4]],Table1[[Q1]:[Q4]]))) -> 0.03 | E179: 8.219178082e-05 | K179: 44839 | L179: 0.2908702052 | R179: 3539.211699
B180: 2021-06-23 | C180: Q2 | D180: =IF(_xlfn.XLOOKUP(YEAR(B180),Table1[Year],_xlfn.XLOOKUP(Running!C180,Table1[[#Headers],[Q1]:[Q4]],Table1[[Q1]:[Q4]]))=0,D179,_xlfn.XLOOKUP(YEAR(B180),Table1[Year],_xlfn.XLOOKUP(Running!C180,Table1[[#Headers],[Q1]:[Q4]],Table1[[Q1]:[Q4]]))) -> 0.03 | E180: 8.219178082e-05 | K180: 44840 | L180: 0.2908941123 | R180: 3539.502594
B181: 2021-06-24 | C181: Q2 | D181: =IF(_xlfn.XLOOKUP(YEAR(B181),Table1[Year],_xlfn.XLOOKUP(Running!C181,Table1[[#Headers],[Q1]:[Q4]],Table1[[Q1]:[Q4]]))=0,D180,_xlfn.XLOOKUP(YEAR(B181),Table1[Year],_xlfn.XLOOKUP(Running!C181,Table1[[#Headers],[Q1]:[Q4]],Table1[[Q1]:[Q4]]))) -> 0.03 | E181: 8.219178082e-05 | K181: 44841 | L181: 0.2909180214 | R181: 3539.793512
B182: 2021-06-25 | C182: Q2 | D182: =IF(_xlfn.XLOOKUP(YEAR(B182),Table1[Year],_xlfn.XLOOKUP(Running!C182,Table1[[#Headers],[Q1]:[Q4]],Table1[[Q1]:[Q4]]))=0,D181,_xlfn.XLOOKUP(YEAR(B182),Table1[Year],_xlfn.XLOOKUP(Running!C182,Table1[[#Headers],[Q1]:[Q4]],Table1[[Q1]:[Q4]]))) -> 0.03 | E182: 8.219178082e-05 | K182: 44842 | L182: 0.2909419325 | R182: 3540.084454
B183: 2021-06-26 | C183: Q2 | D183: =IF(_xlfn.XLOOKUP(YEAR(B183),Table1[Year],_xlfn.XLOOKUP(Running!C183,Table1[[#Headers],[Q1]:[Q4]],Table1[[Q1]:[Q4]]))=0,D182,_xlfn.XLOOKUP(YEAR(B183),Table1[Year],_xlfn.XLOOKUP(Running!C183,Table1[[#Headers],[Q1]:[Q4]],Table1[[Q1]:[Q4]]))) -> 0.03 | E183: 8.219178082e-05 | K183: 44843 | L183: 0.2909658455 | R183: 3540.375419
B184: 2021-06-27 | C184: Q2 | D184: =IF(_xlfn.XLOOKUP(YEAR(B184),Table1[Year],_xlfn.XLOOKUP(Running!C184,Table1[[#Headers],[Q1]:[Q4]],Table1[[Q1]:[Q4]]))=0,D183,_xlfn.XLOOKUP(YEAR(B184),Table1[Year],_xlfn.XLOOKUP(Running!C184,Table1[[#Headers],[Q1]:[Q4]],Table1[[Q1]:[Q4]]))) -> 0.03 | E184: 8.219178082e-05 | K184: 44844 | L184: 0.2909897605 | R184: 3540.666409
B185: 2021-06-28 | C185: Q2 | D185: =IF(_xlfn.XLOOKUP(YEAR(B185),Table1[Year],_xlfn.XLOOKUP(Running!C185,Table1[[#Headers],[Q1]:[Q4]],Table1[[Q1]:[Q4]]))=0,D184,_xlfn.XLOOKUP(YEAR(B185),Table1[Year],_xlfn.XLOOKUP(Running!C185,Table1[[#Headers],[Q1]:[Q4]],Table1[[Q1]:[Q4]]))) -> 0.03 | E185: 8.219178082e-05 | K185: 44845 | L185: 0.2910136775 | R185: 3540.957423
B186: 2021-06-29 | C186: Q2 | D186: =IF(_xlfn.XLOOKUP(YEAR(B186),Table1[Year],_xlfn.XLOOKUP(Running!C186,Table1[[#Headers],[Q1]:[Q4]],Table1[[Q1]:[Q4]]))=0,D185,_xlfn.XLOOKUP(YEAR(B186),Table1[Year],_xlfn.XLOOKUP(Running!C186,Table1[[#Headers],[Q1]:[Q4]],Table1[[Q1]:[Q4]]))) -> 0.03 | E186: 8.219178082e-05 | K186: 44846 | L186: 0.2910375964 | R186: 3541.24846
B187: 2021-06-30 | C187: Q2 | D187: =IF(_xlfn.XLOOKUP(YEAR(B187),Table1[Year],_xlfn.XLOOKUP(Running!C187,Table1[[#Headers],[Q1]:[Q4]],Table1[[Q1]:[Q4]]))=0,D186,_xlfn.XLOOKUP(YEAR(B187),Table1[Year],_xlfn.XLOOKUP(Running!C187,Table1[[#Headers],[Q1]:[Q4]],Table1[[Q1]:[Q4]]))) -> 0.03 | E187: 8.219178082e-05 | K187: 44847 | L187: 0.2910615173 | R187: 3541.539522
B188: 2021-07-01 | C188: Q3 | D188: =IF(_xlfn.XLOOKUP(YEAR(B188),Table1[Year],_xlfn.XLOOKUP(Running!C188,Table1[[#Headers],[Q1]:[Q4]],Table1[[Q1]:[Q4]]))=0,D187,_xlfn.XLOOKUP(YEAR(B188),Table1[Year],_xlfn.XLOOKUP(Running!C188,Table1[[#Headers],[Q1]:[Q4]],Table1[[Q1]:[Q4]]))) -> 0.03 | E188: 8.219178082e-05 | K188: 44848 | L188: 0.2910854402 | R188: 3541.830607
B189: 2021-07-02 | C189: Q3 | D189: =IF(_xlfn.XLOOKUP(YEAR(B189),Table1[Year],_xlfn.XLOOKUP(Running!C189,Table1[[#Headers],[Q1]:[Q4]],Table1[[Q1]:[Q4]]))=0,D188,_xlfn.XLOOKUP(YEAR(B189),Table1[Year],_xlfn.XLOOKUP(Running!C189,Table1[[#Headers],[Q1]:[Q4]],Table1[[Q1]:[Q4]]))) -> 0.03 | E189: 8.219178082e-05 | K189: 44849 | L189: 0.291109365 | R189: 3542.121717
B190: 2021-07-03 | C190: Q3 | D190: =IF(_xlfn.XLOOKUP(YEAR(B190),Table1[Year],_xlfn.XLOOKUP(Running!C190,Table1[[#Headers],[Q1]:[Q4]],Table1[[Q1]:[Q4]]))=0,D189,_xlfn.XLOOKUP(YEAR(B190),Table1[Year],_xlfn.XLOOKUP(Running!C190,Table1[[#Headers],[Q1]:[Q4]],Table1[[Q1]:[Q4]]))) -> 0.03 | E190: 8.219178082e-05 | K190: 44850 | L190: 0.2911332918 | R190: 3542.41285
B191: 2021-07-04 | C191: Q3 | D191: =IF(_xlfn.XLOOKUP(YEAR(B191),Table1[Year],_xlfn.XLOOKUP(Running!C191,Table1[[#Headers],[Q1]:[Q4]],Table1[[Q1]:[Q4]]))=0,D190,_xlfn.XLOOKUP(YEAR(B191),Table1[Year],_xlfn.XLOOKUP(Running!C191,Table1[[#Headers],[Q1]:[Q4]],Table1[[Q1]:[Q4]]))) -> 0.03 | E191: 8.219178082e-05 | K191: 44851 | L191: 0.2911572206 | R191: 3542.704007
B192: 2021-07-05 | C192: Q3 | D192: =IF(_xlfn.XLOOKUP(YEAR(B192),Table1[Year],_xlfn.XLOOKUP(Running!C192,Table1[[#Headers],[Q1]:[Q4]],Table1[[Q1]:[Q4]]))=0,D191,_xlfn.XLOOKUP(YEAR(B192),Table1[Year],_xlfn.XLOOKUP(Running!C192,Table1[[#Headers],[Q1]:[Q4]],Table1[[Q1]:[Q4]]))) -> 0.03 | E192: 8.219178082e-05 | K192: 44852 | L192: 0.2911811513 | R192: 3542.995188
B193: 2021-07-06 | C193: Q3 | D193: =IF(_xlfn.XLOOKUP(YEAR(B193),Table1[Year],_xlfn.XLOOKUP(Running!C193,Table1[[#Headers],[Q1]:[Q4]],Table1[[Q1]:[Q4]]))=0,D192,_xlfn.XLOOKUP(YEAR(B193),Table1[Year],_xlfn.XLOOKUP(Running!C193,Table1[[#Headers],[Q1]:[Q4]],Table1[[Q1]:[Q4]]))) -> 0.03 | E193: 8.219178082e-05 | K193: 44853 | L193: 0.291205084 | R193: 3543.286393
B194: 2021-07-07 | C194: Q3 | D194: =IF(_xlfn.XLOOKUP(YEAR(B194),Table1[Year],_xlfn.XLOOKUP(Running!C194,Table1[[#Headers],[Q1]:[Q4]],Table1[[Q1]:[Q4]]))=0,D193,_xlfn.XLOOKUP(YEAR(B194),Table1[Year],_xlfn.XLOOKUP(Running!C194,Table1[[#Headers],[Q1]:[Q4]],Table1[[Q1]:[Q4]]))) -> 0.03 | E194: 8.219178082e-05 | K194: 44854 | L194: 0.2912290187 | R194: 3543.577622
B195: 2021-07-08 | C195: Q3 | D195: =IF(_xlfn.XLOOKUP(YEAR(B195),Table1[Year],_xlfn.XLOOKUP(Running!C195,Table1[[#Headers],[Q1]:[Q4]],Table1[[Q1]:[Q4]]))=0,D194,_xlfn.XLOOKUP(YEAR(B195),Table1[Year],_xlfn.XLOOKUP(Running!C195,Table1[[#Headers],[Q1]:[Q4]],Table1[[Q1]:[Q4]]))) -> 0.03 | E195: 8.219178082e-05 | K195: 44855 | L195: 0.2912529553 | R195: 3543.868875
B196: 2021-07-09 | C196: Q3 | D196: =IF(_xlfn.XLOOKUP(YEAR(B196),Table1[Year],_xlfn.XLOOKUP(Running!C196,Table1[[#Headers],[Q1]:[Q4]],Table1[[Q1]:[Q4]]))=0,D195,_xlfn.XLOOKUP(YEAR(B196),Table1[Year],_xlfn.XLOOKUP(Running!C196,Table1[[#Headers],[Q1]:[Q4]],Table1[[Q1]:[Q4]]))) -> 0.03 | E196: 8.219178082e-05 | K196: 44856 | L196: 0.2912768939 | R196: 3544.160152
B197: 2021-07-10 | C197: Q3 | D197: =IF(_xlfn.XLOOKUP(YEAR(B197),Table1[Year],_xlfn.XLOOKUP(Running!C197,Table1[[#Headers],[Q1]:[Q4]],Table1[[Q1]:[Q4]]))=0,D196,_xlfn.XLOOKUP(YEAR(B197),Table1[Year],_xlfn.XLOOKUP(Running!C197,Table1[[#Headers],[Q1]:[Q4]],Table1[[Q1]:[Q4]]))) -> 0.03 | E197: 8.219178082e-05 | K197: 44857 | L197: 0.2913008345 | R197: 3544.451453
B198: 2021-07-11 | C198: Q3 | D198: =IF(_xlfn.XLOOKUP(YEAR(B198),Table1[Year],_xlfn.XLOOKUP(Running!C198,Table1[[#Headers],[Q1]:[Q4]],Table1[[Q1]:[Q4]]))=0,D197,_xlfn.XLOOKUP(YEAR(B198),Table1[Year],_xlfn.XLOOKUP(Running!C198,Table1[[#Headers],[Q1]:[Q4]],Table1[[Q1]:[Q4]]))) -> 0.03 | E198: 8.219178082e-05 | K198: 44858 | L198: 0.291324777 | R198: 3544.742778
B199: 2021-07-12 | C199: Q3 | D199: =IF(_xlfn.XLOOKUP(YEAR(B199),Table1[Year],_xlfn.XLOOKUP(Running!C199,Table1[[#Headers],[Q1]:[Q4]],Table1[[Q1]:[Q4]]))=0,D198,_xlfn.XLOOKUP(YEAR(B199),Table1[Year],_xlfn.XLOOKUP(Running!C199,Table1[[#Headers],[Q1]:[Q4]],Table1[[Q1]:[Q4]]))) -> 0.03 | E199: 8.219178082e-05 | K199: 44859 | L199: 0.2913487215 | R199: 3545.034127
B200: 2021-07-13 | C200: ="Q"&ROUNDUP(MONTH(B200)/3,0) -> Q3 | D200: =IF(_xlfn.XLOOKUP(YEAR(B200),Table1[Year],_xlfn.XLOOKUP(Running!C200,Table1[[#Headers],[Q1]:[Q4]],Table1[[Q1]:[Q4]]))=0,D199,_xlfn.XLOOKUP(YEAR(B200),Table1[Year],_xlfn.XLOOKUP(Running!C200,Table1[[#Headers],[Q1]:[Q4]],Table1[[Q1]:[Q4]]))) -> 0.03 | E200: =D200/365 -> 8.219178082e-05 | K200: 44860 | L200: =ROUNDUP(_xlfn.XLOOKUP(K200,$B$7:$B$6215,$E$7:$E$6215)*R199,10) -> 0.291372668 | R200: =SUM(L200:Q200)+R199 -> 3545.325499
B201: =B200+1 -> 2021-07-14 | C201: Q3 | D201: =IF(_xlfn.XLOOKUP(YEAR(B201),Table1[Year],_xlfn.XLOOKUP(Running!C201,Table1[[#Headers],[Q1]:[Q4]],Table1[[Q1]:[Q4]]))=0,D200,_xlfn.XLOOKUP(YEAR(B201),Table1[Year],_xlfn.XLOOKUP(Running!C201,Table1[[#Headers],[Q1]:[Q4]],Table1[[Q1]:[Q4]]))) -> 0.03 | E201: 8.219178082e-05 | K201: 44861 | L201: 0.2913966164 | R201: 3545.616896
B202: 2021-07-15 | C202: Q3 | D202: =IF(_xlfn.XLOOKUP(YEAR(B202),Table1[Year],_xlfn.XLOOKUP(Running!C202,Table1[[#Headers],[Q1]:[Q4]],Table1[[Q1]:[Q4]]))=0,D201,_xlfn.XLOOKUP(YEAR(B202),Table1[Year],_xlfn.XLOOKUP(Running!C202,Table1[[#Headers],[Q1]:[Q4]],Table1[[Q1]:[Q4]]))) -> 0.03 | E202: 8.219178082e-05 | K202: 44862 | L202: 0.2914205668 | R202: 3545.908317
B203: 2021-07-16 | C203: Q3 | D203: =IF(_xlfn.XLOOKUP(YEAR(B203),Table1[Year],_xlfn.XLOOKUP(Running!C203,Table1[[#Headers],[Q1]:[Q4]],Table1[[Q1]:[Q4]]))=0,D202,_xlfn.XLOOKUP(YEAR(B203),Table1[Year],_xlfn.XLOOKUP(Running!C203,Table1[[#Headers],[Q1]:[Q4]],Table1[[Q1]:[Q4]]))) -> 0.03 | E203: 8.219178082e-05 | K203: 44863 | L203: 0.2914445192 | R203: 3546.199761
... 4297 more rows

Sheet PandI
A1: Underpayment (corp and non-corp) | H1: Failure to File Penalty
A2: Year | B2: Q1 | C2: Q2 | D2: Q3 | E2: Q4 | H2: Return Due Date (without extension) | I2: Max Date | J2: Minimum Amount
A3: 2000 | B3: 0.08 | C3: 0.09 | D3: 0.09 | E3: 0.09 | H3: On or before 12/31/2008 | I3: 39813 | J3: 100
A4: 2001 | B4: 0.09 | C4: 0.08 | D4: 0.07 | E4: 0.07 | H4: Between 01/01/2009 and 12/31/2015 | I4: 42369 | J4: 135
A5: 2002 | B5: 0.06 | C5: 0.06 | D5: 0.06 | E5: 0.06 | H5: Between 01/01/2016 and 12/31/2017 | I5: 43100 | J5: 205
A6: 2003 | B6: 0.05 | C6: 0.05 | D6: 0.05 | E6: 0.04 | H6: Between 01/01/2018 and 12/31/2019 | I6: 43830 | J6: 210
A7: 2004 | B7: 0.04 | C7: 0.05 | D7: 0.04 | E7: 0.05 | H7: Between 01/01/2020 and 12/31/2022 | I7: 44926 | J7: 435
A8: 2005 | B8: 0.05 | C8: 0.06 | D8: 0.06 | E8: 0.07 | H8: Between 01/01/2023 and 12/31/2023 | I8: 45291 | J8: 450
A9: 2006 | B9: 0.07 | C9: 0.07 | D9: 0.08 | E9: 0.08 | H9: After 12/31/2023 | I9: 45291 | J9: 485
A10: 2007 | B10: 0.08 | C10: 0.08 | D10: 0.08 | E10: 0.08
A11: 2008 | B11: 0.07 | C11: 0.06 | D11: 0.05 | E11: 0.06 | I11: Period 1 | J11: =IF('1040'!D11="","",IF('1040'!D11<=PandI!I3,PandI!J3,IF('1040'!D11<=PandI!I4,PandI!J4,IF('1040'!D11<=PandI!I5,PandI!J5,IF('1040'!D11<=PandI!I6,PandI!J6,IF('1040'!D11<=PandI!I7,PandI!J7,IF('1040'!D11<=PandI!I8,PandI!J8,IF('1040'!D11>PandI!I9,PandI!J9)))))))) -> 435
A12: 2009 | B12: 0.05 | C12: 0.04 | D12: 0.04 | E12: 0.04 | I12: Period 2 | J12: =IF('1040'!G11="","",IF('1040'!G11<=PandI!I3,PandI!J3,IF('1040'!G11<=PandI!I4,PandI!J4,IF('1040'!G11<=PandI!I5,PandI!J5,IF('1040'!G11<=PandI!I6,PandI!J6,IF('1040'!G11<=PandI!I7,PandI!J7,IF('1040'!G11<=PandI!I8,PandI!J8,IF('1040'!G11>PandI!I9,PandI!J9)))))))) -> 450
A13: 2010 | B13: 0.04 | C13: 0.04 | D13: 0.04 | E13: 0.04 | I13: Period 3 | J13: =IF('1040'!H11="","",IF('1040'!H11<=PandI!I3,PandI!J3,IF('1040'!H11<=PandI!I4,PandI!J4,IF('1040'!H11<=PandI!I5,PandI!J5,IF('1040'!H11<=PandI!I6,PandI!J6,IF('1040'!H11<=PandI!I7,PandI!J7,IF('1040'!H11<=PandI!I8,PandI!J8,IF('1040'!H11>PandI!I9,PandI!J9)))))))) -> 
A14: 2011 | B14: 0.03 | C14: 0.04 | D14: 0.04 | E14: 0.03 | I14: Period 4 | J14: =IF('1040'!I11="","",IF('1040'!I11<=PandI!I3,PandI!J3,IF('1040'!I11<=PandI!I4,PandI!J4,IF('1040'!I11<=PandI!I5,PandI!J5,IF('1040'!I11<=PandI!I6,PandI!J6,IF('1040'!I11<=PandI!I7,PandI!J7,IF('1040'!I11<=PandI!I8,PandI!J8,IF('1040'!I11>PandI!I9,PandI!J9)))))))) -> 
A15: 2012 | B15: 0.03 | C15: 0.03 | D15: 0.03 | E15: 0.03 | I15: Period 5 | J15: =IF('1040'!J11="","",IF('1040'!J11<=PandI!I3,PandI!J3,IF('1040'!J11<=PandI!I4,PandI!J4,IF('1040'!J11<=PandI!I5,PandI!J5,IF('1040'!J11<=PandI!I6,PandI!J6,IF('1040'!J11<=PandI!I7,PandI!J7,IF('1040'!J11<=PandI!I8,PandI!J8,IF('1040'!J11>PandI!I9,PandI!J9)))))))) -> 
A16: 2013 | B16: 0.03 | C16: 0.03 | D16: 0.03 | E16: 0.03 | I16: Period 6 | J16: =IF('1040'!K11="","",IF('1040'!K11<=PandI!I3,PandI!J3,IF('1040'!K11<=PandI!I4,PandI!J4,IF('1040'!K11<=PandI!I5,PandI!J5,IF('1040'!K11<=PandI!I6,PandI!J6,IF('1040'!K11<=PandI!I7,PandI!J7,IF('1040'!K11<=PandI!I8,PandI!J8,IF('1040'!K11>PandI!I9,PandI!J9)))))))) -> 
A17: 2014 | B17: 0.03 | C17: 0.03 | D17: 0.03 | E17: 0.03
A18: 2015 | B18: 0.03 | C18: 0.03 | D18: 0.03 | E18: 0.03
A19: 2016 | B19: 0.03 | C19: 0.04 | D19: 0.04 | E19: 0.04
A20: 2017 | B20: 0.04 | C20: 0.04 | D20: 0.04 | E20: 0.04
A21: 2018 | B21: 0.05 | C21: 0.05 | D21: 0.05 | E21: 0.04
A22: 2019 | B22: 0.05 | C22: 0.05 | D22: 0.06 | E22: 0.06
A23: 2020 | B23: 0.03 | C23: 0.03 | D23: 0.05 | E23: 0.05
A24: 2021 | B24: 0.03 | C24: 0.03 | D24: 0.03 | E24: 0.03
A25: 2022 | B25: 0.06 | C25: 0.05 | D25: 0.04 | E25: 0.03
A26: 2023 | B26: 0.08 | C26: 0.07 | D26: 0.07 | E26: 0.07
A27: 2024 | B27: 0.08 | C27: 0.08
A28: 2025
A29: 2026
A30: 2027
A31: 2028
A32: 2029
A33: 2030
A34: 2031
A35: 2032
A36: 2033
A37: 2034
A38: 2035
A39: 2036
A40: 2037
A41: 2038
A42: 2039
A43: 2040
A44: 2041
A45: 2042
A46: 2043
A47: 2044
A48: 2045
A49: 2046
A50: 2047
A51: 2048
A52: 2049
A53: 2050
